Workbook

Sheet раскл3-7
H1: "Утверждаю"
H2: Руководитель дошкольной образовательной
H3: организации | J3: Р.Р.Абдрахманова
C5: Примерное 10-дневное меню
C6: для организации питания детей в дошкольных образовательных учреждениях
C7: с 7-12 часовым пребыванием от 3 до 7 лет
A9: День 1 - ый
A10: Прием пищи | C10: Выход блюда | D10: Кол - во | E10: Кол - во | F10: Пищевые вещества (г) | I10: Энергетическая | J10: Витамин | K10: № рецептуры
A11: Наименование блюд | D11: (в гр ) | E11: (в гр ) | I11: ценность
D12: брутто | E12: нетто | F12: белки | G12: жиры | H12: угл-ды | I12: Ккал | J12: С
B13: ЗАВТРАК
A14: Каша гречневая молочная с маслом | C14: 200/5 | F14: 5.89 | G14: 5.42 | H14: 25.84 | I14: 176.00 | J14: 0.21 | K14: ТТК№2
B15: Крупа гречневая | D15: 25.00 | E15: 25.00
B16: Молоко | D16: 100.00 | E16: 100.00
B17: вода | D17: 76.00 | E17: 76.00
B18: Сахар | D18: 5.00 | E18: 5.00
B19: Соль | D19: 1.00 | E19: 1.00
B20: Масло сливочное | D20: 5.00 | E20: 5.00
A21: Кофейный напиток с молоком | C21: 180 | F21: 1.22 | G21: 1.34 | H21: 11.94 | I21: 65.00 | J21: 0.19 | K21: №395 Дели2010
B22: Кофейный напиток | D22: 2.50 | E22: 2.50
B23: Сахар | D23: 10.00 | E23: 10.00
B24: Молоко | D24: 90.00 | E24: 90.00
B25: Вода | D25: 108.00 | E25: 108.00
A26: Бутерброд с маслом сливочным | C26: 30/5 | F26: 2.30 | G26: 4.50 | H26: 15.40 | I26: 111.00 | K26: №1 Дели2010
B27: Батон нарезной | D27: 30.00 | E27: 30.00
B28: Масло сливочное | D28: 5.00 | E28: 5.00
A29: Итого: | C29: 420 | F29: 9.41 | G29: 11.26 | H29: 53.18 | I29: 352.00 | J29: 0.40
B30: 2 - ой ЗАВТРАК
A31: Сок | C31: 200 | D31: 200 | E31: 200 | F31: 1.00 | G31: 1.00 | H31: 25.40 | I31: 105.60 | J31: 8.00 | K31: №399Дели2010
A32: абрикосовый
A33: Итого: | C33: 200 | F33: 1.00 | G33: 1.00 | H33: 25.40 | I33: 105.60 | J33: 8.00
B34: ОБЕД
A35: Салат из моркови с яблоками | C35: 60 | F35: 0.50 | G35: 2.10 | H35: 5.00 | I35: 40.00 | J35: 1.26 | K35: №41Дели2016
B36: Морковь | D36: 42.56 | E36: 32.00
B37: Яблоки | D37: 29.41 | E37: 25.80
B38: Масло растительное | D38: 2.50 | E38: 2.50
A39: Свекольник на мб, со сметаной | C39: 200/6 | F39: 4.16 | G39: 6.40 | H39: 8.14 | I39: 106.80 | J39: 3.86 | K39: №35,сб Пермь2001
B40: Свекла | D40: 69.36 | E40: 51.00
B41: Картофель | D41: 53.13 | E41: 34.50
B42: Морковь | D42: 11.70 | E42: 8.80
B43: Лук репчатый | D43: 10.59 | E43: 8.90
B44: Масло растительное | D44: 4.00 | E44: 4.00
B45: Томат-паста | D45: 1.00 | E45: 1.00
B46: Сахар | D46: 1.30 | E46: 1.30
B47: Сметана | D47: 6.00 | E47: 6.00
B48: Соль | D48: 1.00 | E48: 1.00
B49: Вода | D49: 160.00 | E49: 160.00
A50: Азу с отварной говядиной | C50: 180 | F50: 13 | G50: 11.3 | H50: 18 | I50: 226 | J50: 4.7 | K50: ТТК№5Д
B51: Говядина | D51: 47.25 | E51: 47.25
B52: масса тушеного мяса | E52: 30
B53: Картофель | D53: 147.84 | E53: 96
B54: Лук репчатый | D54: 14.28 | E54: 12
B55: Томат-паста | D55: 3 | E55: 3
B56: Масло растительное | D56: 8 | E56: 8
B57: огурцы соленые | D57: 22 | E57: 12
B58: Мука пшеничная | D58: 2 | E58: 2
B59: соль | D59: 1.3 | E59: 1.3
A60: Компот из сухофруктов | C60: 150 | F60: 0.70 | G60: 0.04 | H60: 18.00 | I60: 75.20 | J60: 0.30 | K60: №394Дели2016
B61: сухофрукты | D61: 15.30 | E61: 15.00
B62: Сахар | D62: 8.00 | E62: 8.00
B63: Вода | D63: 152.00 | E63: 152.00
A64: Хлеб сельский | C64: 37.5 | D64: 37.50 | E64: 37.50 | F64: 1.8 | G64: 0.4 | H64: 18 | I64: 82.5
A65: Итого: | C65: 633.5 | F65: 20.16 | G65: 20.24 | H65: 67.14 | I65: 530.50 | J65: 10.12
B66: ПОЛДНИК
A67: Пирожок печёный с повидлом | C67: 60 | F67: 3.60 | G67: 3.12 | H67: 26.40 | I67: 147.00 | J67: 0.00 | K67: №437 Дели2016
B68: Мука пшеничная | D68: 29.00 | E68: 29.00
B69: Масло сливочное | D69: 2.00 | E69: 2.00
B70: сахар | D70: 2.00 | E70: 2.00
B71: Яйцо | D71: 4.20 | E71: 4.20
B72: соль | D72: 0.70 | E72: 0.70
B73: вода | D73: 7.00 | E73: 7.00
B74: дрожжи сухие | D74: 0.20 | E74: 0.20
B75: тесто дрожжевое | E75: 43.00
B76: Масло растительное | D76: 0.20 | E76: 0.20
B77: повидло фруктовое | D77: 25.00 | E77: 25.00
A78: Кефир | C78: 130 | F78: 3.70 | G78: 3.25 | H78: 5.20 | I78: 65.00 | J78: 0.80 | K78: №401 Дели2010
B79: кефир | D79: 134.00 | E79: 130.00
A80: Запеканка рыбная с рисом и овощами | C80: 150 | F80: 6.00 | G80: 8.30 | H80: 7.40 | I80: 128.30 | K80: ТТК №3
B81: Рыба | D81: 90.80 | E81: 69.00 | K81: 10.10.2019г
B82: вода | D82: 27.50 | E82: 27.50
B83: крупа рисовая | D83: 22.00 | E83: 22.00
B84: Лук репчатый | D84: 13.39 | E84: 11.25
B85: Морковь | D85: 14.96 | E85: 11.25
B86: Соль | D86: 1.00 | E86: 1.00
B87: Сыр | D87: 11.50 | E87: 11.20
B88: Соус сметанный | E88: 8.0 | K88: №372 Дели 2016
B89: Сметана | D89: 2.0 | E89: 2.0
B90: Мука пшеничная | D90: 0.6 | E90: 0.6
B91: вода | D91: 6.0 | E91: 6.0
B92: соль | D92: 0.8 | E92: 0.8
B93: Масло сливочное | D93: 3.00 | E93: 3.00
B94: Масло растительное | D94: 1.20 | E94: 1.20
A95: Чай с сахаром | C95: 120/5 | F95: 0.05 | G95: 0.01 | H95: 6.5 | I95: 26 | K95: №392Дели2010
B96: Заварка | D96: 0.35 | E96: 0.35
B97: Сахар | D97: 5 | E97: 5
B98: Вода | D98: 120 | E98: 120
A99: Хлеб пшеничный 1с | C99: 23 | D99: 23.00 | E99: 23.00 | F99: 1.80 | G99: 0.23 | H99: 11.30 | I99: 54.50 | J99: 0.00
A100: Итого: | C100: 488 | F100: 15.15 | G100: 14.91 | H100: 56.80 | I100: 420.80 | J100: 0.80
A101: ВСЕГО: | C101: 1741.5 | F101: 45.72 | G101: 47.41 | H101: 202.52 | I101: 1408.90 | J101: 19.32
A103: День 2- ой
A104: Прием пищи | C104: Выход блюда | D104: Кол - во | E104: Кол - во | F104: Пищевые вещества (г) | I104: Энергетическая | J104: Витамин | K104: № рецептуры
A105: Наименование блюд | D105: (в гр ) | E105: (в гр ) | I105: ценность
D106: брутто | E106: нетто | F106: белки | G106: жиры | H106: угл-ды | I106: Ккал | J106: С
B107: ЗАВТРАК
A108: Каша "Дружба" молочная с маслом | C108: 200/5 | F108: 5.20 | G108: 7.10 | H108: 23.20 | I108: 177.50 | J108: 0.21 | K108: ТТК №7
B109: Крупа рисовая | D109: 15.00 | E109: 15.00
B110: Крупа пшенная | D110: 11.00 | E110: 11.00
B111: Молоко | D111: 102.00 | E111: 102.00
B112: Вода | D112: 70.00 | E112: 70.00
B113: Сахар | D113: 5.00 | E113: 5.00
B114: Соль | D114: 1.00 | E114: 1.00
B115: Масло сливочное | D115: 5.00 | E115: 5.00
A116: Какао с молоком | C116: 180 | F116: 2.42 | G116: 2.58 | H116: 13.61 | I116: 87.30 | J116: 0.39 | K116: №397 Дели2010
B117: Какао-порошок | D117: 2.00 | E117: 2.00
B118: Сахар | D118: 10.00 | E118: 10.00
B119: Молоко | D119: 110.00 | E119: 110.00
B120: Вода | D120: 80.00 | E120: 80.00
A121: Бутерброд с сыром, маслом | C121: 30/7/5 | F121: 4.80 | G121: 7.20 | H121: 15.40 | I121: 146.00 | J121: 0.19 | K121: №3 Дели2010
B122: Батон нарезной | D122: 30.00 | E122: 30.00
B123: Сыр | D123: 7.14 | E123: 7.00
B124: Масло сливочное | D124: 5.00 | E124: 5.00
A125: Итого: | C125: 427 | F125: 12.42 | G125: 16.88 | H125: 52.21 | I125: 410.80 | J125: 0.80
B126: 2 - ой ЗАВТРАК
A127: Фрукты свежие | C127: 100 | D127: 114 | E127: 100 | F127: 1.00 | G127: 0.00 | H127: 8.10 | I127: 36.40 | J127: 60.00 | K127: № 368 Дели 2010
A128: апельсин
A129: Итого: | C129: 100 | F129: 1.00 | G129: 0.00 | H129: 8.10 | I129: 36.40 | J129: 60.00
B130: ОБЕД
A131: Салат из свеклы | C131: 60 | F131: 0.75 | G131: 2.00 | H131: 3.60 | I131: 35.40 | J131: 1.50 | K131: №34, Дели2016
B132: Свекла | D132: 77.52 | E132: 57.00
B133: Масло растительное | D133: 3.00 | E133: 3.00
A134: Суп картофельный с горохом с курицей и гренками | C134: 200/15/10 | F134: 8.25 | G134: 4.40 | H134: 16.00 | I134: 136.60 | J134: 5.80 | K134: ТТК№139
B135: цыплята | D135: 33.85 | E135: 22
B136: Картофель | D136: 61.60 | E136: 40.00
B137: Горох | D137: 20.25 | E137: 20.00
B138: Морковь | D138: 10.64 | E138: 8.00
B139: Лук репчатый | D139: 9.52 | E139: 8.00
B140: Масло растительное | D140: 3.00 | E140: 3.00
B141: Соль | D141: 1.20 | E141: 1.20
B142: Вода | D142: 144.00 | E142: 144.00
B143: гренки
B144: Хлеб пшеничный 1с | D144: 14.40 | E144: 12.00
B145: Масло сливочное | D145: 2.00 | E145: 2.00
A146: Котлеты рубленые из говядины | C146: 60/3 | F146: 9.5 | G146: 7 | H146: 9.5 | I146: 139 | J146: 0.4 | K146: №299 Дели2016
B147: фарш из говядины | D147: 44.5 | E147: 44.5
B148: Хлеб пшеничный 1с | D148: 10.8 | E148: 10.8
B149: Вода | D149: 10.12 | E149: 10.12
B150: Лук репчатый | D150: 5.12 | E150: 4.3
B151: Сухари панировочные | D151: 6 | E151: 6
B152: Соль | D152: 0.5 | E152: 0.5
B153: масса полуфабриката | E153: 74
B154: Масло растительное | D154: 2 | E154: 2
B155: Масло сливочное | D155: 3 | E155: 3
A156: Макароны отварные | C156: 100 | F156: 3.70 | G156: 2.80 | H156: 22.60 | I156: 130.40 | K156: №218 Дели 2016
B157: макаронные изделия | D157: 34.00 | E157: 34.00
B158: Масло сливочное | D158: 2.00 | E158: 2.00
B159: Соль | D159: 0.60 | E159: 0.60
A160: Кисель | C160: 150 | H160: 15.00 | I160: 60.00 | K160: №284Партнер2014
B161: Кисель-концентрат | D161: 18.00 | E161: 18.00
B162: вода | D162: 150.00 | E162: 150.00
B163: Сахар | D163: 7.50 | E163: 7.50
A164: Хлеб сельский | C164: 37.5 | D164: 37.50 | E164: 37.50 | F164: 1.8 | G164: 0.4 | H164: 18 | I164: 82.5
A165: Итого: | C165: 635.5 | F165: 24.00 | G165: 16.60 | H165: 84.70 | I165: 583.90 | J165: 7.70
B166: ПОЛДНИК
A167: Кондитерские изделия | C167: 40 | D167: 40.00 | E167: 40.00 | F167: 1.10 | G167: 7.00 | H167: 9.00 | I167: 103.40
A168: (вафли)
A169: Ряженка | C169: 130 | F169: 3.72 | G169: 3.20 | H169: 3.50 | I169: 57.50 | J169: 0.65 | K169: №401 Дели2010
B170: ряженка | D170: 134 | E170: 130
A171: Салат из моркови припущенной | C171: 50 | F171: 0.75 | G171: 0.06 | H171: 8.50 | I171: 38.29 | J171: 1.90 | K171: №42 Дели2016г
B172: Морковь | D172: 66.5 | E172: 50
B173: Сахар | D173: 2 | E173: 2
A174: Суфле из творога с молоком сгущенным | C174: 105/20 | F174: 13.30 | G174: 7.40 | H174: 27.00 | I174: 227.00 | J174: 0.30 | K174: №365сбшк2004
B175: Творог | D175: 76.07 | E175: 75.00
B176: крупа манная | D176: 8.00 | E176: 8.00
B177: Яйцо | D177: 5.00 | E177: 5.00
B178: Сахар | D178: 8.00 | E178: 8.00
B179: Молоко | D179: 15.00 | E179: 15.00
B180: Сметана | D180: 10.00 | E180: 10.00
B181: соль | D181: 0.30 | E181: 0.30
B182: Масло растительное | D182: 0.60 | E182: 0.60
B183: Молоко сгущенное | D183: 20.00 | E183: 20.00
A184: Чай с сахаром и лимоном | C184: 120/5/3 | F184: 0.08 | G184: 0.01 | H184: 6.80 | I184: 27.30 | J184: 1.90 | K184: №393Дели2010
B185: Заварка | D185: 0.35 | E185: 0.35
B186: Сахар | D186: 5 | E186: 5
B187: лимон | D187: 3.4 | E187: 3
B188: Вода | D188: 120.0 | E188: 120.0
A189: Хлеб пшеничный 1с | C189: 23 | D189: 23.00 | E189: 23.00 | F189: 1.80 | G189: 0.23 | H189: 11.30 | I189: 54.50 | J189: 0.00
A190: Итого: | C190: 496 | F190: 20.75 | G190: 17.90 | H190: 66.10 | I190: 507.99 | J190: 4.75
A191: ВСЕГО: | C191: 1658.5 | F191: 58.17 | G191: 51.38 | H191: 211.11 | I191: 1539.09 | J191: 73.25
A193: День 3 - ий
A194: Прием пищи | C194: Выход блюда | D194: Кол - во | E194: Кол - во | F194: Пищевые вещества (г) | I194: Энергетическая | J194: Витамин | K194: № рецептуры
A195: Наименование блюд | D195: (в гр ) | E195: (в гр ) | I195: ценность
D196: брутто | E196: нетто | F196: белки | G196: жиры | H196: угл-ды | I196: Ккал | J196: С
B197: ЗАВТРАК
A198: Каша пшеничная молочная с маслом | C198: 200/5 | F198: 6.00 | G198: 7.00 | H198: 28.00 | I198: 199.00 | J198: 0.22 | K198: ТТК №9
B199: крупа пшеничная | D199: 25.00 | E199: 25.00
B200: Молоко | D200: 100.00 | E200: 100.00
B201: Вода | D201: 76.00 | E201: 76.00
B202: Сахар | D202: 5.00 | E202: 5.00
B203: Соль | D203: 1.00 | E203: 1.00
B204: Масло сливочное | D204: 5.00 | E204: 5.00
... 785 more rows

Sheet меню10ч1-3
F1: "Утверждаю"
F2: Руководитель дошкольной образовательной
F3: организации
E4: Примерное 10-дневное меню
E5: для организации питания детей в дошкольных образовательных учреждениях
E6: с 7-12 часовым пребыванием от 1 до 3 лет
A7: День 1 - ый
A8: Прием пищи | C8: Выход блюда | D8: Пищевые вещества (г) | G8: Энергетическая | H8: Витамин | I8: № рецептуры
A9: Наименование блюд | G9: ценность
D10: белки | E10: жиры | F10: угл-ды | G10: Ккал | H10: С
B11: ЗАВТРАК
A12: Каша гречневая молочная с маслом | C12: 150/5 | D12: 4.40 | E12: 3.80 | F12: 18.30 | G12: 125.00 | H12: 0.16 | I12: ТТК№2
A13: Кофейный напиток с молоком | C13: 165/7 | D13: 1 | E13: 1.2 | F13: 10 | G13: 55 | H13: 0.16 | I13: №395Дели2010
A14: Бутерброд с маслом сливочным | C14: 25/5 | D14: 1.9 | E14: 4.4 | F14: 13 | G14: 99 | I14: №1 Дели2010
A15: Итого: | C15: 350 | D15: 7.30 | E15: 9.40 | F15: 41.30 | G15: 279.00 | H15: 0.32
B16: 2 - ой ЗАВТРАК
A17: Сок | C17: 200 | D17: 0.00 | E17: 0.00 | F17: 20.00 | G17: 80.00 | H17: 8.00 | I17: №399Дели2010
A18: абрикосовый
A19: Итого: | C19: 200 | D19: 0.00 | E19: 0.00 | F19: 20.00 | G19: 80.00 | H19: 8.00
B20: ОБЕД
A21: Салат из моркови с яблоками | C21: 50 | D21: 0.40 | E21: 1.75 | F21: 4.20 | G21: 34.00 | H21: 1.05 | I21: №41Дели2016
A22: Свекольник на мб, со сметаной | C22: 150/5 | D22: 3.12 | E22: 4.80 | F22: 6.10 | G22: 80.00 | H22: 2.90 | I22: №35,сб.Пермь2001
A23: Азу из отварной говядиной | C23: 150 | D23: 10.8 | E23: 9.4 | F23: 15 | G23: 187.8 | H23: 4 | I23: ТТК№5Д
A24: Компот из сухофруктов | C24: 130 | D24: 0.60 | E24: 0.03 | F24: 15.60 | G24: 65.10 | H24: 0.26 | I24: №394Дели2016
A25: Хлеб сельский | C25: 30 | D25: 1.5 | E25: 0.3 | F25: 14.3 | G25: 66
A26: Итого: | C26: 515.00 | D26: 16.42 | E26: 16.28 | F26: 55.20 | G26: 432.90 | H26: 8.21
B27: ПОЛДНИК
A28: Пирожок печёный с повидлом | C28: 40 | D28: 2.40 | E28: 2.08 | F28: 17.60 | G28: 98.70 | H28: 0.00 | I28: №437 Дели2016
A29: Кефир | C29: 110 | D29: 3.1 | E29: 2.75 | F29: 4.4 | G29: 54.8 | H29: 0.9 | I29: №401Дели2010
A30: Запеканка рыбная с рисом и овощами | C30: 120 | D30: 4.80 | E30: 6.64 | F30: 5.90 | G30: 102.60 | I30: ТТК №3
A31: Чай с сахаром | C31: 100/4 | D31: 0.05 | E31: 0.01 | F31: 5.4 | G31: 21.9 | I31: №392Дели2010
A32: Хлеб пшеничный 1с | C32: 20 | D32: 1.6 | E32: 0.2 | F32: 9.8 | G32: 47 | H32: 0
A33: Итого: | C33: 400.00 | D33: 11.95 | E33: 11.68 | F33: 43.10 | G33: 325.00 | H33: 0.90
A34: ВСЕГО: | C34: 1465.00 | D34: 35.67 | E34: 37.36 | F34: 159.60 | G34: 1116.90 | H34: 17.43
A36: День 2- ой
A37: Прием пищи | C37: Выход блюда | D37: Пищевые вещества (г) | G37: Энергетическая | H37: Витамин | I37: № рецептуры
A38: Наименование блюд | G38: ценность
D39: белки | E39: жиры | F39: угл-ды | G39: Ккал | H39: С
B40: ЗАВТРАК
A41: Каша "Дружба" молочная с маслом | C41: 150/5 | D41: 3.60 | E41: 5.30 | F41: 17.00 | G41: 130.00 | H41: 0.21 | I41: ТТК №7
A42: Какао с молоком | C42: 160 | D42: 2.00 | E42: 2.20 | F42: 11.30 | G42: 73.30 | H42: 0.32 | I42: №397Дели2010
A43: Бутерброд с сыром, маслом | C43: 25/5/5 | D43: 3.50 | E43: 5.95 | F43: 12.90 | G43: 119.60 | H43: 0.04 | I43: №3Дели2010
A44: Итого: | C44: 350 | D44: 9.10 | E44: 13.45 | F44: 41.20 | G44: 322.90 | H44: 0.57
B45: 2 - ой ЗАВТРАК
A46: Фрукты свежие | C46: 100 | D46: 1.00 | E46: 0.00 | F46: 8.10 | G46: 36.40 | H46: 60.00 | I46: № 368 Дели 2010
A47: апельсин
A48: Итого: | C48: 100 | D48: 1.00 | E48: 0.00 | F48: 8.10 | G48: 36.40 | H48: 60.00
B49: ОБЕД
A50: Салат из свеклы | C50: 50 | D50: 0.60 | E50: 1.60 | F50: 3.00 | G50: 29.00 | H50: 1.00 | I50: №34, Дели2016
A51: Суп картофельный с горохом с курицей и гренками | C51: 150/10/10 | D51: 6.66 | E51: 3.90 | F51: 11.84 | G51: 109.80 | H51: 4.26 | I51: ТТК№139
A52: Котлеты рубленные из говядины | C52: 50/2 | D52: 7.9 | E52: 6 | F52: 7.9 | G52: 117.2 | H52: 0.3 | I52: №299 Дели2016
A53: Макароны отварные | C53: 80 | D53: 2.80 | E53: 3.00 | F53: 20.00 | G53: 118.20 | I53: №218 Дели 2016
A54: Кисель | C54: 130 | F54: 13.00 | G54: 52.00 | I54: №284Партнер2014
A55: Хлеб сельский | C55: 30 | D55: 1.5 | E55: 0.3 | F55: 14.3 | G55: 66
A56: Итого: | C56: 512.00 | D56: 19.46 | E56: 14.80 | F56: 70.04 | G56: 492.20 | H56: 5.56
B57: ПОЛДНИК
A58: Ряженка | C58: 110 | D58: 3.12 | E58: 2.75 | F58: 4.59 | G58: 55.60 | H58: 0.55 | I58: №401Дели2010
A59: Кондитерские изделия | C59: 17.5 | D59: 2.20 | E59: 8.00 | F59: 3.00 | G59: 92.80
A60: (печенье)
A61: Салат из моркови припущенной | C61: 40 | D61: 0.60 | E61: 0.05 | F61: 6.80 | G61: 30.00 | H61: 1.50 | I61: №42 Дели2016г
A62: Суфле из творога с молоком сгущенным | C62: 100/10 | D62: 8.40 | E62: 4.30 | F62: 16.00 | G62: 136.30 | H62: 0.29 | I62: №365сб 2004
A63: Чай с сахаром и лимоном | C63: 100/4/2,5 | D63: 0.07 | E63: 0.01 | F63: 5.60 | G63: 22.75 | H63: 1.59 | I63: №393Дели2010
A64: Хлеб пшеничный 1с | C64: 20 | D64: 1.6 | E64: 0.2 | F64: 9.8 | G64: 47 | H64: 0
A65: Итого: | C65: 409 | D65: 15.99 | E65: 15.31 | F65: 45.79 | G65: 384.45 | H65: 3.93
A66: ВСЕГО: | C66: 1371.00 | D66: 45.55 | E66: 43.56 | F66: 165.13 | G66: 1235.95 | H66: 70.06
A68: День 3 - ий
A69: Прием пищи | C69: Выход блюда | D69: Пищевые вещества (г) | G69: Энергетическая | H69: Витамин | I69: № рецептуры
A70: Наименование блюд | G70: ценность
D71: белки | E71: жиры | F71: угл-ды | G71: Ккал | H71: С
B72: ЗАВТРАК
A73: Каша пшеничная молочная с маслом | C73: 150/5 | D73: 3.56 | E73: 5.25 | F73: 21.00 | G73: 145.50 | H73: 0.21 | I73: ТТК №9
A74: Чай с молоком,сахаром | C74: 160/8,3 | D74: 2.30 | E74: 2.00 | F74: 11.90 | G74: 74.80 | H74: 1.20 | I74: №394Дели2010
A75: Бутерброд с маслом сливочным | C75: 25/5 | D75: 1.9 | E75: 4.4 | F75: 13 | G75: 99 | I75: №1 Дели2010
A76: Итого: | C76: 353 | D76: 7.76 | E76: 11.65 | F76: 45.90 | G76: 319.30 | H76: 1.41
B77: 2 - ой ЗАВТРАК
A78: Сок | C78: 200 | D78: 0.01 | E78: 0.00 | F78: 12.00 | G78: 48.00 | H78: 1.80 | I78: 399Дели2010
A79: яблочный
A80: Итого: | C80: 200 | D80: 0.01 | E80: 0.00 | F80: 12.00 | G80: 48.00 | H80: 1.80
B81: ОБЕД
A82: Салат из капусты с яблоками | C82: 40 | D82: 0.70 | E82: 1.80 | F82: 3.80 | G82: 34.20 | H82: 7.60 | I82: №7 Партнер 2014
A83: Суп вермишелевый с картофелем с мясными фрикадельками | C83: 150/10 | D83: 4.00 | E83: 4.45 | F83: 11.70 | G83: 103.00 | H83: 4.00 | I83: №88 Дели 2016
A84: Тефтели рыбные в сметанно-томатном соусе | C84: 50/15 | D84: 7.80 | E84: 3.00 | F84: 5.00 | G84: 78.00 | I84: ТТК №1Д
A85: Пюре Картофельное | C85: 100 | D85: 2.00 | E85: 3.00 | F85: 14.00 | G85: 91.00 | H85: 7.00 | I85: №137 Партнер 2014
A86: Компот из кураги | C86: 130 | D86: 0.60 | E86: 0.00 | F86: 18.00 | G86: 74.50 | H86: 0.11 | I86: №394, Дели 2016
A87: Хлеб сельский | C87: 30 | D87: 1.5 | E87: 0.3 | F87: 14.3 | G87: 66
A88: Итого: | C88: 525 | D88: 16.60 | E88: 12.55 | F88: 66.80 | G88: 446.70 | H88: 18.71
B89: ПОЛДНИК
A90: Катык | C90: 110 | D90: 3.12 | E90: 2.75 | F90: 2.50 | G90: 47.20 | H90: 0.55 | I90: №401Дели2010
A91: Шанежка наливная с яйцом | C91: 50 | D91: 4.30 | E91: 2.00 | F91: 12.00 | G91: 83.20 | H91: 0.08 | I91: №308 "Партнер"2010
A92: Рагу из птицы с овощами | C92: 100/20 | D92: 10.48 | E92: 11.36 | F92: 8.96 | G92: 180.00 | H92: 0.26 | I92: ТТК №4Д
A93: Напиток из плодов шиповника | C93: 100 | D93: 0.3 | E93: 0.13 | F93: 9.4 | G93: 39.9 | H93: 40.7 | I93: №417Дели2016
A94: Хлеб пшеничный 1с | C94: 20 | D94: 1.6 | E94: 0.2 | F94: 9.8 | G94: 47 | H94: 0
A95: Итого: | C95: 400 | D95: 19.80 | E95: 16.44 | F95: 42.66 | G95: 397.30 | H95: 41.59
A96: ВСЕГО: | C96: 1478 | D96: 44.17 | E96: 40.64 | F96: 167.36 | G96: 1211.30 | H96: 63.51
A98: День 4 - ый
A99: Прием пищи | C99: Выход блюда | D99: Пищевые вещества (г) | G99: Энергетическая | H99: Витамин | I99: № рецептуры
A100: Наименование блюд | G100: ценность
D101: белки | E101: жиры | F101: угл-ды | G101: Ккал | H101: С
B102: ЗАВТРАК
A103: Суп молочный с крупой | C103: 150 | D103: 2.90 | E103: 3.60 | F103: 12.50 | G103: 94.00 | H103: 0.40 | I103: №101 Дели 2016
A104: Кофейный напиток с молоком | C104: 165/7 | D104: 1 | E104: 1.2 | F104: 10 | G104: 55 | H104: 0.16 | I104: №395Дели2010
A105: Бутерброд с сыром, маслом | C105: 25/5/5 | D105: 3.50 | E105: 5.95 | F105: 12.90 | G105: 119.60 | H105: 0.04 | I105: №3Дели2010
A106: Итого: | C106: 350 | D106: 7.40 | E106: 10.75 | F106: 35.40 | G106: 268.60 | H106: 0.60
B107: 2 - ой ЗАВТРАК
A108: Фрукты свежие | C108: 100 | D108: 0.60 | E108: 0.43 | F108: 14.00 | G108: 62.30 | H108: 7.00 | I108: № 368 Дели 2010
A109: груша
A110: Итого: | C110: 100 | D110: 0.60 | E110: 0.43 | F110: 14.00 | G110: 62.30 | H110: 7.00
B111: ОБЕД
A112: Огурцы соленые порционно | C112: 30 | D112: 0.24 | E112: 0.03 | F112: 0.51 | G112: 3.20 | H112: 1.50 | I112: стр563,сб1996
A113: Щи со свежей капустой, картофелем на м/б, со сметаной | C113: 150/5 | D113: 1.10 | E113: 3.30 | F113: 5.00 | G113: 54.00 | H113: 7.00 | I113: №73 Дели 2016
A114: Жаркое по-домашнему из отварной говядины | C114: 180 | D114: 10 | E114: 12 | F114: 20 | G114: 228 | H114: 2.8 | I114: ТТК №29 Д
A115: Компот из сухофруктов | C115: 130 | D115: 0.60 | E115: 0.03 | F115: 15.60 | G115: 65.10 | H115: 0.26 | I115: №394Дели2016
A116: Хлеб сельский | C116: 30 | D116: 1.5 | E116: 0.3 | F116: 14.3 | G116: 66
A117: Итого: | C117: 525 | D117: 13.44 | E117: 15.66 | F117: 55.41 | G117: 416.30 | H117: 11.56
B118: ПОЛДНИК
A119: Кефир | C119: 110 | D119: 3.1 | E119: 2.75 | F119: 4.4 | G119: 54.8 | H119: 0.9 | I119: №401Дели2010
A120: Кондитерские изделия | C120: 10 | D120: 0.25 | E120: 5.00 | F120: 15.00 | G120: 106.00
A121: (крекер)
A122: Салат из моркови с яблоками | C122: 30 | D122: 0.20 | E122: 1.00 | F122: 2.50 | G122: 19.80 | H122: 0.60 | I122: №41Дели2016
A123: Запеканка из творога с крошкой | C123: 100 | D123: 14.80 | E123: 4.90 | F123: 11.70 | G123: 126.10 | I123: № 322 Сб Самара 2013г
A124: Чай с сахаром | C124: 100/4 | D124: 0.05 | E124: 0.01 | F124: 5.4 | G124: 21.9 | I124: №392Дели2010
A125: Хлеб пшеничный 1с | C125: 20 | D125: 1.6 | E125: 0.2 | F125: 9.8 | G125: 47 | H125: 0
A126: Итого: | C126: 400 | D126: 20.00 | E126: 13.86 | F126: 48.80 | G126: 375.60 | H126: 1.50
A127: ВСЕГО: | C127: 1375 | D127: 41.44 | E127: 40.70 | F127: 153.61 | G127: 1122.80 | H127: 20.66
A129: День 5 - ый
A130: Прием пищи | C130: Выход блюда | D130: Пищевые вещества (г) | G130: Энергетическая | H130: Витамин | I130: № рецептуры
A131: Наименование блюд | G131: ценность
D132: белки | E132: жиры | F132: угл-ды | G132: Ккал | H132: С
B133: ЗАВТРАК
A134: Каша полбяная молочная с маслом | C134: 150/5 | D134: 4.4 | E134: 4.1 | F134: 19.4 | G134: 132 | H134: 0.16 | I134: ТТК №1
A135: Какао с молоком | C135: 160 | D135: 2.00 | E135: 2.20 | F135: 11.30 | G135: 73.30 | H135: 0.32 | I135: №397Дели2010
A136: Бутерброд с маслом сливочным | C136: 25/5 | D136: 1.9 | E136: 4.4 | F136: 13 | G136: 99 | I136: №1 Дели2010
A137: Итого: | C137: 350 | D137: 8.30 | E137: 10.70 | F137: 43.70 | G137: 304.30 | H137: 0.48
B138: 2 - ой ЗАВТРАК
A139: Сок | C139: 200 | D139: 0.00 | E139: 0.00 | F139: 22.80 | G139: 91.20 | H139: 14.80 | I139: №399Дели2010
A140: вишневый
A141: Итого: | C141: 200 | D141: 0.00 | E141: 0.00 | F141: 22.80 | G141: 91.20 | H141: 14.80
B142: ОБЕД
A143: Салат "Здоровье" | C143: 50 | D143: 0.30 | E143: 2.00 | F143: 3.80 | G143: 34.40 | H143: 1.00 | I143: №19 Пермь2001
A144: Суп с крупой, картофелем с мясными фрикадельками | C144: 150/10 | D144: 2.50 | E144: 3.90 | F144: 6.10 | G144: 70.00 | H144: 1.00 | I144: №86 Дели 2016
A145: Котлеты рубленые из птицы | C145: 50 | D145: 8.00 | E145: 6.25 | F145: 4.00 | G145: 104.25 | H145: 0.25 | I145: №322 Дели2016
A146: Капуста тушеная (в сметанном соусе) | C146: 120 | D146: 2.4 | E146: 3.9 | F146: 10.96 | G146: 89 | I146: ТТК№53Д
A147: Компот из свежих яблок | C147: 130 | D147: 0.10 | E147: 0.10 | F147: 10.20 | G147: 41.00 | H147: 1.20 | I147: №372Дели2010
A148: Хлеб сельский | C148: 30 | D148: 1.5 | E148: 0.3 | F148: 14.3 | G148: 66
A149: Итого: | C149: 540 | D149: 14.80 | E149: 16.45 | F149: 49.36 | G149: 404.65 | H149: 3.45
B150: ПОЛДНИК
A151: Ряженка | C151: 110 | D151: 3.12 | E151: 2.70 | F151: 3.70 | G151: 51.60 | H151: 0.55 | I151: №401Дели2010
A152: Кондитерские изделия | C152: 17.5 | D152: 0.30 | E152: 1.00 | F152: 11.50 | G152: 56.00
A153: вафли
A154: Рыбная "Неженка" | C154: 50 | D154: 12.0 | E154: 4.7 | F154: 9.8 | G154: 130 | I154: ТТК №30Д
A155: Картофель тушёный | C155: 100 | D155: 1.85 | E155: 5.3 | F155: 8.2 | G155: 88 | H155: 1 | I155: №138 "Партнер"2014
A156: Чай с сахаром и лимоном | C156: 100/4/2,5 | D156: 0.07 | E156: 0.01 | F156: 5.60 | G156: 22.75 | H156: 1.59 | I156: №393Дели2010
A157: Хлеб пшеничный 1с | C157: 20 | D157: 1.6 | E157: 0.2 | F157: 9.8 | G157: 47 | H157: 0
A158: Итого: | C158: 404 | D158: 18.94 | E158: 13.91 | F158: 48.60 | G158: 394.85 | H158: 3.14
A159: ВСЕГО: | C159: 1494 | D159: 42.04 | E159: 41.06 | F159: 164.46 | G159: 1195.00 | H159: 21.87
C160: 2 НЕДЕЛЯ
A161: День 6 - ой
A162: Прием пищи | C162: Выход блюда | D162: Пищевые вещества (г) | G162: Энергетическая | H162: Витамин | I162: № рецептуры
A163: Наименование блюд | G163: ценность
D164: белки | E164: жиры | F164: угл-ды | G164: Ккал | H164: С
B165: ЗАВТРАК
A166: Суп молочный с вермишелью | C166: 150 | D166: 3.30 | E166: 3.10 | F166: 13.30 | G166: 94.30 | H166: 0.39 | I166: №100 Дели2016
A167: Чай с молоком,сахаром | C167: 160/8 | D167: 2.30 | E167: 2.00 | F167: 11.90 | G167: 74.80 | H167: 1.20 | I167: №394Дели2010
A168: Бутерброд с сыром, маслом | C168: 25/5/5 | D168: 3.50 | E168: 5.95 | F168: 12.90 | G168: 119.60 | H168: 0.04 | I168: №3Дели2010
A169: Итого: | C169: 350 | D169: 9.10 | E169: 11.05 | F169: 38.10 | G169: 288.70 | H169: 1.63
B170: 2 - ой ЗАВТРАК
A171: Фрукты свежие | C171: 100 | D171: 0.40 | E171: 0.40 | F171: 10.00 | G171: 45.20 | H171: 10.00 | I171: №399Дели2010
A172: яблоко
A173: Итого: | C173: 100 | D173: 0.40 | E173: 0.40 | F173: 10.00 | G173: 45.20 | H173: 10.00
B174: ОБЕД
A175: Свекла отварная | C175: 50 | D175: 1.00 | E175: 0.12 | F175: 7.10 | G175: 33.50 | H175: 2.00 | I175: стр 564 сб1996
A176: Рассольник ленинградский с курицей, со сметаной | C176: 150/10/5 | D176: 4.06 | E176: 6 | F176: 6.3 | G176: 95.4 | H176: 4.03 | I176: №82 Дели 2016
A177: Запеканка картофельная с мясом | C177: 130/15 | D177: 12.02 | E177: 10.60 | F177: 25.00 | G177: 243.50 | H177: 4.40 | I177: №291 Дели2010
A178: Компот из кураги | C178: 130 | D178: 0.30 | E178: 0.01 | F178: 18.10 | G178: 73.50 | H178: 0.26 | I178: №394, Дели 2016
A179: Хлеб сельский | C179: 30 | D179: 1.5 | E179: 0.3 | F179: 14.3 | G179: 66
A180: Итого: | C180: 520 | D180: 18.88 | E180: 17.03 | F180: 70.80 | G180: 511.90 | H180: 10.69
B181: ПОЛДНИК
A182: Ватрушка с повидлом | C182: 50 | D182: 3.18 | E182: 3.20 | F182: 20.00 | G182: 122 | H182: 0.05 | I182: №441 Дели 2016
A183: Катык | C183: 110 | D183: 3.12 | E183: 2.75 | F183: 2.50 | G183: 47.20 | H183: 0.55 | I183: №401Дели2010
A184: Биточки рубленые из рыбы | C184: 70 | D184: 5.40 | E184: 2.70 | F184: 2.50 | G184: 55.00 | I184: ТТК №3
A185: Капуста тушеная | C185: 80 | D185: 1.58 | E185: 3 | F185: 7.6 | G185: 63.7 | H185: 13 | I185: №143 Дели2016
A186: Напиток из плодов шиповника | C186: 100 | D186: 0.3 | E186: 0.13 | F186: 9.4 | G186: 39.9 | H186: 40.7 | I186: №417Дели2016
A187: Хлеб пшеничный 1с | C187: 20 | D187: 1.6 | E187: 0.2 | F187: 9.8 | G187: 47 | H187: 0
A188: Итого: | C188: 430 | D188: 15.18 | E188: 11.98 | F188: 51.80 | G188: 374.30 | H188: 54.30
A189: ВСЕГО: | C189: 1300 | D189: 43.56 | E189: 40.46 | F189: 170.70 | G189: 1220.10 | H189: 76.62
A191: День 7 - ой
A192: Прием пищи | C192: Выход блюда | D192: Пищевые вещества (г) | G192: Энергетическая | H192: Витамин | I192: № рецептуры
A193: Наименование блюд | G193: ценность
D194: белки | E194: жиры | F194: угл-ды | G194: Ккал | H194: С
B195: ЗАВТРАК
A196: Каша рисовая молочная с маслом | C196: 150/5 | D196: 4.28 | E196: 5.85 | F196: 29.85 | G196: 189.75 | H196: 0.15 | I196: ТТК №8
A197: Кофейный напиток с молоком | C197: 165/7 | D197: 1 | E197: 1.2 | F197: 10 | G197: 55 | H197: 0.16 | I197: №395Дели2010
A198: Бутерброд с маслом сливочным | C198: 25/5 | D198: 1.9 | E198: 4.4 | F198: 13 | G198: 99 | I198: №1 Дели2010
A199: Итого: | C199: 350 | D199: 7.18 | E199: 11.45 | F199: 52.85 | G199: 343.75 | H199: 0.31
B200: 2 - ой ЗАВТРАК
A201: Сок | C201: 200 | D201: 0.60 | E201: 0.30 | F201: 16.50 | G201: 71.10 | H201: 6.00 | I201: № 368 Дели 2010
A202: персик-банан
A203: Итого: | C203: 200 | D203: 0.60 | E203: 0.30 | F203: 16.50 | G203: 71.10 | H203: 6.00
B204: ОБЕД
A205: Салат из моркови с яблоками | C205: 50 | D205: 0.40 | E205: 1.75 | F205: 4.20 | G205: 34.00 | H205: 1.05 | I205: №41Дели2016
... 132 more rows

Sheet меню10ч3-7
F1: "Утверждаю"
F2: Руководитель дошкольной образовательной
F3: организации
C5: 10-дневное меню
C6: для организации питания детей в дошкольных образовательных учреждениях
C7: с 7-12 часовым пребыванием от 3 до 7 лет
A9: День 1 - ый
A10: Прием пищи | C10: Выход блюда | D10: Пищевые вещества (г) | G10: Энергетическая | H10: Витамин | I10: № рецептуры
A11: Наименование блюд | G11: ценность
D12: белки | E12: жиры | F12: угл-ды | G12: Ккал | H12: С
B13: ЗАВТРАК
A14: Каша гречневая молочная с маслом | C14: 200/5 | D14: 5.89 | E14: 5.42 | F14: 25.84 | G14: 176.00 | H14: 0.21 | I14: ТТК№2
A15: Кофейный напиток с молоком | C15: 180 | D15: 1.22 | E15: 1.34 | F15: 11.94 | G15: 65.00 | H15: 0.19 | I15: №395 Дели2010
A16: Бутерброд с маслом сливочным | C16: 30/5 | D16: 2.30 | E16: 4.50 | F16: 15.40 | G16: 111.00 | I16: №1 Дели2010
A17: Итого: | C17: 420 | D17: =SUM(D13:D16) -> 9.41 | E17: =SUM(E13:E16) -> 11.26 | F17: =SUM(F13:F16) -> 53.18 | G17: =SUM(G13:G16) -> 352.00 | H17: =SUM(H13:H16) -> 0.40
B18: 2 - ой ЗАВТРАК
A19: Сок | C19: 200 | D19: 1.00 | E19: 1.00 | F19: 25.40 | G19: 105.60 | H19: 8.00 | I19: №399Дели2010
A20: абрикосовый
A21: Итого: | C21: =SUM(C19:C19) -> 200 | D21: =SUM(D19) -> 1.00 | E21: =SUM(E19) -> 1.00 | F21: =SUM(F19) -> 25.40 | G21: =SUM(G19) -> 105.60 | H21: =SUM(H19) -> 8.00
B22: ОБЕД
A23: Салат из моркови с яблоками | C23: 60 | D23: 0.50 | E23: 2.10 | F23: 5.00 | G23: 40.00 | H23: 1.26 | I23: №41Дели2016
A24: Свекольник на мб, со сметаной | C24: 200/6 | D24: 4.16 | E24: 6.40 | F24: 8.14 | G24: 106.80 | H24: 3.86 | I24: №35,сб Пермь2001
A25: Азу с отварной говядиной | C25: 180 | D25: 13 | E25: 11.3 | F25: 18 | G25: 226 | H25: 4.7 | I25: ТТК№5Д
A26: Компот из сухофруктов | C26: 150 | D26: 0.70 | E26: 0.04 | F26: 18.00 | G26: 75.20 | H26: 0.30 | I26: №394Дели2016
A27: Хлеб сельский | C27: 37.5 | D27: 1.8 | E27: 0.4 | F27: 18 | G27: 82.5
A28: Итого: | C28: 633.5 | D28: =SUM(D23:D27) -> 20.16 | E28: =SUM(E23:E27) -> 20.24 | F28: =SUM(F23:F27) -> 67.14 | G28: =SUM(G23:G27) -> 530.50 | H28: =SUM(H23:H27) -> 10.12
B29: ПОЛДНИК
A30: Пирожок печёный с повидлом | C30: 60 | D30: 3.60 | E30: 3.12 | F30: 26.40 | G30: 147.00 | H30: 0.00 | I30: №437 Дели2016
A31: Кефир | C31: 130 | D31: 3.70 | E31: 3.25 | F31: 5.20 | G31: 65.00 | H31: 0.80 | I31: №401 Дели2010
A32: Запеканка рыбная с рисом и овощами | C32: 150 | D32: 6.00 | E32: 8.30 | F32: 7.40 | G32: 128.30 | I32: ТТК №3
A33: Чай с сахаром | C33: 120/5 | D33: 0.05 | E33: 0.01 | F33: 6.5 | G33: 26 | I33: №392Дели2010
A34: Хлеб пшеничный 1с | C34: 23 | D34: 1.80 | E34: 0.23 | F34: 11.30 | G34: 54.50 | H34: 0.00
A35: Итого: | C35: 488 | D35: =SUM(D29:D34) -> 15.15 | E35: =SUM(E29:E34) -> 14.91 | F35: =SUM(F29:F34) -> 56.80 | G35: =SUM(G29:G34) -> 420.80 | H35: =SUM(H29:H34) -> 0.80
A36: ВСЕГО: | C36: =C17+C21+C28+C35 -> 1741.5 | D36: 45.72 | E36: 47.41 | F36: 202.52 | G36: 1408.90 | H36: 19.32
A38: День 2- ой
A39: Прием пищи | C39: Выход блюда | D39: Пищевые вещества (г) | G39: Энергетическая | H39: Витамин | I39: № рецептуры
A40: Наименование блюд | G40: ценность
D41: белки | E41: жиры | F41: угл-ды | G41: Ккал | H41: С
B42: ЗАВТРАК
A43: Каша "Дружба" молочная с маслом | C43: 200/5 | D43: 5.20 | E43: 7.10 | F43: 23.20 | G43: 177.50 | H43: 0.21 | I43: ТТК №7
A44: Какао с молоком | C44: 180 | D44: 2.42 | E44: 2.58 | F44: 13.61 | G44: 87.30 | H44: 0.39 | I44: №397 Дели2010
A45: Бутерброд с сыром, маслом | C45: 30/7/5 | D45: 4.80 | E45: 7.20 | F45: 15.40 | G45: 146.00 | H45: 0.19 | I45: №3 Дели2010
A46: Итого: | C46: 427 | D46: =SUM(D43:D45) -> 12.42 | E46: =SUM(E43:E45) -> 16.88 | F46: =SUM(F43:F45) -> 52.21 | G46: =SUM(G43:G45) -> 410.80 | H46: =SUM(H43:H45) -> 0.80
B47: 2 - ой ЗАВТРАК
A48: Фрукты свежие | C48: 100 | D48: 1.00 | E48: 0.00 | F48: 8.10 | G48: 36.40 | H48: 60.00 | I48: № 368 Дели 2010
A49: апельсин
A50: Итого: | C50: =SUM(C48) -> 100 | D50: 1.00 | E50: 0.00 | F50: 8.10 | G50: 36.40 | H50: 60.00
B51: ОБЕД
A52: Салат из свеклы | C52: 60 | D52: 0.75 | E52: 2.00 | F52: 3.60 | G52: 35.40 | H52: 1.50 | I52: №34, Дели2016
A53: Суп картофельный с горохом с курицей и гренками | C53: 200/15/10 | D53: 8.25 | E53: 4.40 | F53: 16.00 | G53: 136.60 | H53: 5.80 | I53: ТТК№139
A54: Котлеты рубленые из говядины | C54: 60/3 | D54: 9.5 | E54: 7 | F54: 9.5 | G54: 139 | H54: 0.4 | I54: №299 Дели2016
A55: Макароны отварные | C55: 100 | D55: 3.70 | E55: 2.80 | F55: 22.60 | G55: 130.40 | I55: №218 Дели 2016
A56: Кисель | C56: 150 | F56: 15.00 | G56: 60.00 | I56: №284Партнер2014
A57: Хлеб сельский | C57: 37.5 | D57: 1.8 | E57: 0.4 | F57: 18 | G57: 82.5
A58: Итого: | C58: 635.5 | D58: =SUM(D52:D57) -> 24.00 | E58: =SUM(E52:E57) -> 16.60 | F58: =SUM(F52:F57) -> 84.70 | G58: =SUM(G52:G57) -> 583.90 | H58: =SUM(H52:H57) -> 7.70
B59: ПОЛДНИК
A60: Кондитерские изделия | C60: 40 | D60: 1.10 | E60: 7.00 | F60: 9.00 | G60: 103.40
A61: (вафли)
A62: Ряженка | C62: 130 | D62: 3.72 | E62: 3.20 | F62: 3.50 | G62: 57.50 | H62: 0.65 | I62: №401 Дели2010
A63: Салат из моркови припущенной | C63: 50 | D63: 0.75 | E63: 0.06 | F63: 8.50 | G63: 38.29 | H63: 1.90 | I63: №42 Дели2016г
A64: Суфле из творога с молоком сгущенным | C64: 105/20 | D64: 13.30 | E64: 7.40 | F64: 27.00 | G64: 227.00 | H64: 0.30 | I64: №365сбшк2004
A65: Чай с сахаром и лимоном | C65: 120/5/3 | D65: 0.08 | E65: 0.01 | F65: 6.80 | G65: 27.30 | H65: 1.90 | I65: №393Дели2010
A66: Хлеб пшеничный 1с | C66: 23 | D66: 1.80 | E66: 0.23 | F66: 11.30 | G66: 54.50 | H66: 0.00
A67: Итого: | C67: 496 | D67: =SUM(D60:D66) -> 20.75 | E67: =SUM(E60:E66) -> 17.90 | F67: =SUM(F60:F66) -> 66.10 | G67: =SUM(G60:G66) -> 507.99 | H67: =SUM(H60:H66) -> 4.75
A68: ВСЕГО: | C68: =C46+C50+C58+C67 -> 1658.5 | D68: 58.17 | E68: 51.38 | F68: 211.11 | G68: 1539.09 | H68: 73.25
A70: День 3 - ий
A71: Прием пищи | C71: Выход блюда | D71: Пищевые вещества (г) | G71: Энергетическая | H71: Витамин | I71: № рецептуры
A72: Наименование блюд | G72: ценность
D73: белки | E73: жиры | F73: угл-ды | G73: Ккал | H73: С
B74: ЗАВТРАК
A75: Каша пшеничная молочная с маслом | C75: 200/5 | D75: 6.00 | E75: 7.00 | F75: 28.00 | G75: 199.00 | H75: 0.22 | I75: ТТК №9
A76: Чай с молоком,сахаром | C76: 180/10 | D76: 2.60 | E76: 2.30 | F76: 14.30 | G76: 89.00 | H76: 0.02 | I76: № 394 Дели2010
A77: Бутерброд с маслом сливочным | C77: 30/5 | D77: 2.30 | E77: 4.50 | F77: 15.40 | G77: 111.00 | I77: №1 Дели2010
A78: Итого: | C78: 430 | D78: =SUM(D74:D77) -> 10.90 | E78: =SUM(E74:E77) -> 13.80 | F78: =SUM(F74:F77) -> 57.70 | G78: =SUM(G74:G77) -> 399.00 | H78: =SUM(H74:H77) -> 0.24
B79: 2 - ой ЗАВТРАК
A80: Сок | C80: 200 | D80: 0.60 | E80: 0.00 | F80: 24.00 | G80: 98.40 | H80: 4.00 | I80: №399Дели2010
A81: яблочно-абрикосовый
A82: Итого: | C82: =SUM(C80) -> 200 | D82: 0.60 | E82: 0.00 | F82: 24.00 | G82: 98.40 | H82: 4.00
B83: ОБЕД
A84: Салат из капусты с яблоками | C84: 60 | D84: 1.10 | E84: 2.70 | F84: 5.70 | G84: 51.50 | H84: 11.40 | I84: №7 Партнер 2014
A85: Суп вермишелевый с картофелем и мясными фрикадельками | C85: 200/15 | D85: 4.86 | E85: 5.80 | F85: 15.24 | G85: 132.60 | H85: 5.28 | I85: №88 Дели 2016
A86: Тефтели рыбные в сметанно-томатном соусе | C86: 50/15 | D86: 7.80 | E86: 3.00 | F86: 5.00 | G86: 78.00 | I86: ТТК №1Д
A87: Пюре Картофельное | C87: 120 | D87: 2.40 | E87: 3.60 | F87: 16.80 | G87: 109.20 | H87: 8.34 | I87: №137 Партнер 2014
A88: Компот из кураги | C88: 150 | D88: 0.7 | E88: 0.0 | F88: 20.0 | G88: 83 | H88: 0.13 | I88: №394, Дели 2016
A89: Хлеб сельский | C89: 37.5 | D89: 1.8 | E89: 0.4 | F89: 18 | G89: 82.5
A90: Итого: | C90: 647.5 | D90: =SUM(D83:D89) -> 18.66 | E90: =SUM(E83:E89) -> 15.50 | F90: =SUM(F83:F89) -> 80.74 | G90: =SUM(G83:G89) -> 536.80 | H90: =SUM(H83:H89) -> 25.15
B91: ПОЛДНИК
A92: Катык | C92: 130 | D92: 3.77 | E92: 3.25 | F92: 5.46 | G92: 66.2 | H92: 0.84 | I92: №401Дели2010
A93: Шанежка наливная с яйцом | C93: 50 | D93: 4.30 | E93: 2.00 | F93: 12.00 | G93: 83.20 | H93: 0.08 | I93: №308 "Партнер"2010
A94: Рагу из птицы с овощами | C94: 120/30 | D94: 13.10 | E94: 14.20 | F94: 9.20 | G94: 217.00 | H94: 0.33 | I94: ТТК №4 Д
A95: Напиток из плодов шиповника | C95: 120 | D95: 0.4 | E95: 0.17 | F95: 11.3 | G95: 48.3 | H95: 60 | I95: №417Дели2016
A96: Хлеб пшеничный 1с | C96: 23 | D96: 1.80 | E96: 0.23 | F96: 11.30 | G96: 54.50 | H96: 0.00
A97: Итого: | C97: 473 | D97: =SUM(D91:D96) -> 23.37 | E97: =SUM(E91:E96) -> 19.85 | F97: =SUM(F91:F96) -> 49.26 | G97: =SUM(G91:G96) -> 469.20 | H97: =SUM(H91:H96) -> 61.25
A98: ВСЕГО: | C98: =C78+C82+C90+C97 -> 1750.5 | D98: 53.53 | E98: 49.15 | F98: 211.70 | G98: 1503.40 | H98: 90.64
A100: День 4 - ый
A101: Прием пищи | C101: Выход блюда | D101: Пищевые вещества (г) | G101: Энергетическая | H101: Витамин | I101: № рецептуры
A102: Наименование блюд | G102: ценность
D103: белки | E103: жиры | F103: угл-ды | G103: Ккал | H103: С
B104: ЗАВТРАК
A105: Суп молочный с крупой | C105: 180 | D105: 3.50 | E105: 4.40 | F105: 15.00 | G105: 114.00 | H105: 0.52 | I105: №101 Дели 2016
A106: Кофейный напиток с молоком | C106: 180 | D106: 1.22 | E106: 1.34 | F106: 11.94 | G106: 65.00 | H106: 0.19 | I106: №395 Дели2010
A107: Бутерброд с сыром, маслом | C107: 30/7/5 | D107: 4.80 | E107: 7.20 | F107: 15.40 | G107: 146.00 | H107: 0.19 | I107: №3 Дели2010
A108: Итого: | C108: 402 | D108: =SUM(D104:D107) -> 9.52 | E108: =SUM(E104:E107) -> 12.94 | F108: =SUM(F104:F107) -> 42.34 | G108: =SUM(G104:G107) -> 325.00 | H108: =SUM(H104:H107) -> 0.90
B109: 2 - ой ЗАВТРАК
A110: Фрукты свежие | C110: 100 | D110: 0.60 | E110: 0.43 | F110: 14.00 | G110: 62.30 | H110: 7.00 | I110: № 368 Дели 2010
A111: груша
A112: Итого: | C112: =SUM(C110) -> 100 | D112: 0.60 | E112: 0.43 | F112: 14.00 | G112: 62.30 | H112: 7.00
B113: ОБЕД
A114: Икра кабачковая порционно | C114: 40 | D114: 0.76 | E114: 3.56 | F114: 3.08 | G114: 47.40 | H114: 2.80 | I114: Сб 1996, стр617
A115: Щи со свежей капустой, картофелем на м/б с сметаной | C115: 200/6 | D115: 1.40 | E115: 4.50 | F115: 6.80 | G115: 73.30 | H115: 9.60 | I115: №73 Дели 2016
A116: Жаркое по-домашнему из отварной говядины | C116: 200 | D116: 11.6 | E116: 14 | F116: 29 | G116: 288.4 | H116: 3.13 | I116: ТТК №29 Д
A117: Компот из сухофруктов | C117: 150 | D117: 0.70 | E117: 0.04 | F117: 18.00 | G117: 75.20 | H117: 0.30 | I117: №394Дели2016
A118: Хлеб сельский | C118: 37.5 | D118: 1.8 | E118: 0.4 | F118: 18 | G118: 82.5
A119: Итого: | C119: 633.5 | D119: =SUM(D113:D118) -> 16.26 | E119: =SUM(E113:E118) -> 22.50 | F119: =SUM(F113:F118) -> 74.88 | G119: =SUM(G113:G118) -> 566.80 | H119: =SUM(H113:H118) -> 15.83
B120: ПОЛДНИК
A121: Кефир | C121: 130 | D121: 3.70 | E121: 3.25 | F121: 5.20 | G121: 65.00 | H121: 0.80 | I121: №401 Дели2010
A122: Кондитерские изделия | C122: 20 | D122: 0.50 | E122: 3.90 | F122: 22.00 | G122: 125.10
A123: (крекер)
A124: Салат из моркови с яблоками | C124: 40 | D124: 0.30 | E124: 1.40 | F124: 3.30 | G124: 27.00 | H124: 0.80 | I124: №41Дели2016
A125: Запеканка из творога с крошкой | C125: 120 | D125: 17.70 | E125: 5.90 | F125: 20.00 | G125: 203.90 | I125: № 322 Сб Самара 2013г
A126: Чай с сахаром | C126: 120/5 | D126: 0.05 | E126: 0.01 | F126: 6.5 | G126: 26 | I126: №392Дели2010
A127: Хлеб пшеничный 1с | C127: 23 | D127: 1.80 | E127: 0.23 | F127: 11.30 | G127: 54.50 | H127: 0.00
A128: Итого: | C128: 458 | D128: =SUM(D120:D127) -> 24.05 | E128: =SUM(E120:E127) -> 14.69 | F128: =SUM(F120:F127) -> 68.30 | G128: =SUM(G120:G127) -> 501.50 | H128: =SUM(H120:H127) -> 1.60
A129: ВСЕГО: | C129: =C108+C112+C119+C128 -> 1593.5 | D129: 50.43 | E129: 50.56 | F129: 199.52 | G129: 1455.60 | H129: 25.33
A132: День 5 - ый
A133: Прием пищи | C133: Выход блюда | D133: Пищевые вещества (г) | G133: Энергетическая | H133: Витамин | I133: № рецептуры
A134: Наименование блюд | G134: ценность
D135: белки | E135: жиры | F135: угл-ды | G135: Ккал | H135: С
B136: ЗАВТРАК
A137: Каша полбяная молочная с маслом | C137: 200/5 | D137: 5.89 | E137: 5.42 | F137: 25.84 | G137: 176.00 | H137: 0.21 | I137: ТТК №1
A138: Какао с молоком | C138: 180 | D138: 2.42 | E138: 2.58 | F138: 13.61 | G138: 87.30 | H138: 0.39 | I138: №397 Дели2010
A139: Бутерброд с маслом сливочным | C139: 30/5 | D139: 2.30 | E139: 4.50 | F139: 15.40 | G139: 111.00 | I139: №1 Дели2010
A140: Итого: | C140: 420 | D140: =SUM(D136:D139) -> 10.61 | E140: =SUM(E136:E139) -> 12.50 | F140: =SUM(F136:F139) -> 54.85 | G140: =SUM(G136:G139) -> 374.30 | H140: =SUM(H136:H139) -> 0.61
B141: 2 - ой ЗАВТРАК
A142: Сок | C142: 200 | D142: 1.40 | E142: 0.40 | F142: 22.80 | G142: 100.40 | H142: 14.80 | I142: №399Дели2010
A143: вишневый
A144: Итого: | C144: =SUM(C142) -> 200 | D144: 1.40 | E144: 0.40 | F144: 22.80 | G144: 100.40 | H144: 14.80
B145: ОБЕД
A146: Салат "Здоровье" | C146: 60 | D146: 0.36 | E146: 2.40 | F146: 4.50 | G146: 41.00 | H146: 1.10 | I146: №19 Пермь2001
A147: Суп с крупой и картофелем с мясными фрикадельками | C147: 200/15 | D147: 3.35 | E147: 5.20 | F147: 8.10 | G147: 93.00 | H147: 1.00 | I147: №86 Дели 2016
A148: Котлеты рубленые из птицы | C148: 60 | D148: 9.60 | E148: 7.50 | F148: 4.70 | G148: 124.70 | H148: 0.30 | I148: №322 Дели2016
A149: Капуста тушеная (в сметанном соусе) | C149: 150 | D149: 3 | E149: 4.9 | F149: 13.7 | G149: 111 | I149: ТТК№53Д
A150: Компот из свежих яблок | C150: 150 | D150: 0.10 | E150: 0.10 | F150: 11.80 | G150: 48.50 | H150: 1.20 | I150: № 390 Дели 2016
A151: Хлеб сельский | C151: 37.5 | D151: 1.8 | E151: 0.4 | F151: 18 | G151: 82.5
A152: Итого: | C152: 672.5 | D152: =SUM(D145:D151) -> 18.21 | E152: =SUM(E145:E151) -> 20.50 | F152: =SUM(F145:F151) -> 60.80 | G152: =SUM(G145:G151) -> 500.60 | H152: =SUM(H145:H151) -> 3.60
B153: ПОЛДНИК
A154: Ряженка | C154: 130 | D154: 3.72 | E154: 3.20 | F154: 4.46 | G154: 61.50 | H154: 0.65 | I154: №401 Дели2010
A155: Кондитерские изделия | C155: 30 | D155: 1.00 | E155: 2.00 | F155: 27.00 | G155: 130.00
A156: печенье
A157: Рыбная "Неженка" | C157: 60 | D157: 14.4 | E157: 5.7 | F157: 11.7 | G157: 156 | I157: ТТК №30Д
A158: Картофель тушёный | C158: 120 | D158: 2.25 | E158: 6.75 | F158: 10.50 | G158: 112.00 | H158: 9.00 | I158: №138 "Партнер"2014
A159: Чай с сахаром и лимоном | C159: 120/5/3 | D159: 0.08 | E159: 0.01 | F159: 6.80 | G159: 27.30 | H159: 1.90 | I159: №393Дели2010
A160: Хлеб пшеничный 1с | C160: 23 | D160: 1.80 | E160: 0.23 | F160: 11.30 | G160: 54.50 | H160: 0.00
A161: Итого: | C161: 491 | D161: =SUM(D153:D160) -> 23.25 | E161: =SUM(E153:E160) -> 17.89 | F161: =SUM(F153:F160) -> 71.76 | G161: =SUM(G153:G160) -> 541.00 | H161: =SUM(H153:H160) -> 11.55
A162: ВСЕГО: | C162: =C140+C144+C152+C161 -> 1783.5 | D162: 53.47 | E162: 51.29 | F162: 210.21 | G162: 1516.30 | H162: 30.56
A164: День 6 - ой
A165: Прием пищи | C165: Выход блюда | D165: Пищевые вещества (г) | G165: Энергетическая | H165: Витамин | I165: № рецептуры
A166: Наименование блюд | G166: ценность
D167: белки | E167: жиры | F167: угл-ды | G167: Ккал | H167: С
B168: ЗАВТРАК
A169: Суп молочный с вермишелью | C169: 180 | D169: 3.90 | E169: 3.70 | F169: 16.00 | G169: 113.00 | H169: 0.50 | I169: №100 Дели 2016
A170: Чай с молоком,сахаром | C170: 180/10 | D170: 2.60 | E170: 2.30 | F170: 14.30 | G170: 89.00 | H170: 0.02 | I170: № 394 Дели2010
A171: Бутерброд с сыром, маслом | C171: 30/7/5 | D171: 4.80 | E171: 7.20 | F171: 15.40 | G171: 146.00 | H171: 0.19 | I171: №3 Дели2010
A172: Итого: | C172: 412 | D172: =SUM(D169:D171) -> 11.30 | E172: =SUM(E169:E171) -> 13.20 | F172: =SUM(F169:F171) -> 45.70 | G172: =SUM(G169:G171) -> 348.00 | H172: =SUM(H169:H171) -> 0.71
B173: 2 - ой ЗАВТРАК
A174: Фрукты свежие | C174: 100 | D174: 0.40 | E174: 0.40 | F174: 10.00 | G174: 45.20 | H174: 10.00 | I174: №399Дели2010
A175: яблоко
A176: Итого: | C176: =SUM(C174) -> 100 | D176: 0.40 | E176: 0.40 | F176: 10.00 | G176: 45.20 | H176: 10.00
B177: ОБЕД
A178: Икра кабачковая порционно | C178: 40 | D178: 0.76 | E178: 3.56 | F178: 3.08 | G178: 47.40 | H178: 2.80 | I178: Сб 1996, стр617
A179: Рассольник ленинградский с курицей, со сметаной | C179: 200/15/5 | D179: 4.56 | E179: 7.50 | F179: 12.64 | G179: 136.30 | H179: 5.37 | I179: №82 Дели 2016
A180: Запеканка картофельная с мясом | C180: 150/20 | D180: 14.10 | E180: 12.40 | F180: 30.00 | G180: 288.00 | H180: 4.40 | I180: №291 Дели2010
A181: Компот из кураги | C181: 150 | D181: 0.7 | E181: 0.0 | F181: 20.0 | G181: 83 | H181: 0.13 | I181: №394, Дели 2016
A182: Хлеб сельский | C182: 37.5 | D182: 1.8 | E182: 0.4 | F182: 18 | G182: 82.5
A183: Итого: | C183: 617.5 | D183: =SUM(D177:D182) -> 21.92 | E183: =SUM(E177:E182) -> 23.86 | F183: =SUM(F177:F182) -> 83.72 | G183: =SUM(G177:G182) -> 637.20 | H183: =SUM(H177:H182) -> 12.70
B184: ПОЛДНИК
A185: Ватрушка с повидлом | C185: 50 | D185: 3.18 | E185: 3.20 | F185: 20.00 | G185: 122 | H185: 0.05 | I185: №441 Дели 2016
A186: Катык | C186: 130 | D186: 3.77 | E186: 3.25 | F186: 5.46 | G186: 66.2 | H186: 0.84 | I186: №401Дели2010
A187: Биточки рубленые из рыбы | C187: 80 | D187: 7.00 | E187: 3.20 | F187: 3.00 | G187: 69.00 | I187: ТТК №3
A188: Капуста тушеная | C188: 100 | D188: 1.98 | E188: 3.71 | F188: 9.49 | G188: 79 | H188: 16.3 | I188: №143 Дели2016
A189: Напиток из плодов шиповника | C189: 120 | D189: 0.4 | E189: 0.17 | F189: 11.3 | G189: 48.3 | H189: 60 | I189: №417Дели2016
A190: Хлеб пшеничный 1с | C190: 23 | D190: 1.80 | E190: 0.23 | F190: 11.30 | G190: 54.50 | H190: 0.00
A191: Итого: | C191: 488 | D191: =SUM(D184:D190) -> 18.13 | E191: =SUM(E184:E190) -> 13.76 | F191: =SUM(F184:F190) -> 60.55 | G191: =SUM(G184:G190) -> 438.50 | H191: =SUM(H184:H190) -> 77.19
A192: ВСЕГО: | C192: =C172+C176+C183+C191 -> 1617.5 | D192: 51.75 | E192: 51.22 | F192: 199.97 | G192: 1468.90 | H192: 100.60
A194: День 7 - ой
A195: Прием пищи | C195: Выход блюда | D195: Пищевые вещества (г) | G195: Энергетическая | H195: Витамин | I195: № рецептуры
A196: Наименование блюд | G196: ценность
D197: белки | E197: жиры | F197: угл-ды | G197: Ккал | H197: С
B198: ЗАВТРАК
A199: Каша рисовая молочная с маслом | C199: 200/5 | D199: 5.70 | E199: 7.80 | F199: 28.00 | G199: 205.00 | H199: 0.21 | I199: ТТК №8
A200: Кофейный напиток с молоком | C200: 180 | D200: 1.22 | E200: 1.34 | F200: 11.94 | G200: 65.00 | H200: 0.19 | I200: №395 Дели2010
A201: Бутерброд с маслом сливочным | C201: 30/5 | D201: 2.30 | E201: 4.50 | F201: 15.40 | G201: 111.00 | I201: №1 Дели2010
A202: Итого: | C202: 420 | D202: =SUM(D198:D201) -> 9.22 | E202: =SUM(E198:E201) -> 13.64 | F202: =SUM(F198:F201) -> 55.34 | G202: =SUM(G198:G201) -> 381.00 | H202: =SUM(H198:H201) -> 0.40
B203: 2 - ой ЗАВТРАК
A204: Сок | C204: 200 | D204: 0.60 | E204: 0.30 | F204: 16.50 | G204: 71.10 | H204: 6.00 | I204: № 368 Дели 2010
A205: персик-банан
A206: Итого: | C206: =SUM(C204) -> 200 | D206: 0.60 | E206: 0.30 | F206: 16.50 | G206: 71.10 | H206: 6.00
B207: ОБЕД
A208: Салат из моркови с яблоками | C208: 60 | D208: 0.50 | E208: 2.10 | F208: 5.00 | G208: 40.00 | H208: 1.26 | I208: №41Дели2016
A209: Борщ со свежей капустой, картофелем на м/б, со сметаной | C209: 200/6 | D209: 1.50 | E209: 3.90 | F209: 9.50 | G209: 79.00 | H209: 6.36 | I209: №63 Дели 2016
... 131 more rows

Sheet кал3-7
C5: Калорийность
D6: ДОУ от 3 до 7 лет
B9: Объемы порций | C9: Белки | D9: Жиры | E9: Угл-ды | F9: Энергетическая ценность | G9: Витамин С
A10: норма | B10: 1450-2300 | C10: 40,5-58,4 | D10: 45-55,2 | E10: 196-220 | F10: 1350-1570
A11: 1 | B11: 1741.50 | C11: 45.72 | D11: 47.41 | E11: 202.52 | F11: 1408.90 | G11: 19.32
A12: 2 | B12: 1658.50 | C12: 58.17 | D12: 51.38 | E12: 211.11 | F12: 1539.09 | G12: 73.25
A13: 3 | B13: 1750.50 | C13: 53.53 | D13: 49.15 | E13: 211.70 | F13: 1503.40 | G13: 90.64
A14: 4 | B14: 1593.50 | C14: 50.43 | D14: 50.56 | E14: 199.52 | F14: 1455.60 | G14: 25.33
A15: 5 | B15: 1783.50 | C15: 53.47 | D15: 51.29 | E15: 210.21 | F15: 1516.30 | G15: 30.56
A16: 6 | B16: 1617.50 | C16: 51.75 | D16: 51.22 | E16: 199.97 | F16: 1468.90 | G16: 100.60
A17: 7 | B17: 1711.50 | C17: 48.12 | D17: 54.29 | E17: 204.20 | F17: 1496.50 | G17: 15.38
A18: 8 | B18: 1632.30 | C18: 50.76 | D18: 52.26 | E18: 198.88 | F18: 1469.32 | G18: 21.02
A19: 9 | B19: 1738.50 | C19: 43.73 | D19: 50.12 | E19: 211.76 | F19: 1473.40 | G19: 29.21
A20: 10 | B20: 1670.50 | C20: 57.32 | D20: 54.74 | E20: 196.48 | F20: 1507.10 | G20: 33.99
A22: Всего | B22: 16897.80 | C22: 512.98 | D22: 512.43 | E22: 2046.35 | F22: 14838.51 | G22: 439.30
A23: В среднем | B23: 1689.78 | C23: 51.30 | D23: 51.24 | E23: 204.64 | F23: 1483.85 | G23: 43.93
A26: Примечание: при составлении примерного 10- дневного меню соблюдено выполнение средне-суточных наборов продуктов по возрастам и времени пребывания. Пищевая,энергетическая ценность соответствует показателям СанПиН 2.4.1.3049-13 таб. 3 "Нормы физиологических потребностей в энергии и пищевых веществах" и приложению№10 " Рекомендуемые суточные наборы продуктов для организации питания детей в дошкольных образовательных организациях" по химическому составу использованных наборов продуктов.

Sheet свод 3-7
B1: Расход продуктов ДОУ
D2: от 3 до 7 лет | K2: нетто
A3: Наименов. прод. | B3: 1 | C3: 2 | D3: 3 | E3: 4 | F3: 5 | G3: 6 | H3: 7 | I3: 8 | J3: 9 | K3: 10 | L3: Кол-во | M3: Среднее | N3: Норма нетто | O3: Отклон. | P3: Отклон.%
A5: Сахар | B5: 31.30 | C5: 37.50 | D5: 32.63 | E5: 36.00 | F5: 34.50 | G5: 28.62 | H5: 40.80 | I5: 31.60 | J5: 40.66 | K5: 30.50 | L5: 344.11 | M5: 34.41 | N5: 353 | O5: -8.9 | P5: -2.52
A6: Заварка | B6: 0.35 | C6: 0.35 | D6: 0.45 | E6: 0.35 | F6: 0.35 | G6: 0.45 | H6: 0.35 | I6: 0.35 | J6: 0.80 | K6: 0.35 | L6: 4.15 | M6: 0.42 | N6: 4.2 | O6: -0.0 | P6: -1.19
A7: Яйцо | B7: 4.20 | C7: 5.00 | D7: 10.80 | E7: 8.40 | F7: 5.50 | G7: 14.40 | H7: 5.20 | I7: 111.50 | J7: 9.23 | K7: 4.00 | L7: 178.23 | M7: 17.82 | N7: 180 | O7: -1.8 | P7: -0.98
A8: Дрожжи сухие | B8: 0.20 | C8: 0.00 | D8: 0.30 | E8: 0.00 | F8: 0.00 | G8: 0.20 | H8: 0.00 | I8: 0.30 | J8: 0.30 | K8: 0.00 | L8: 1.30 | M8: 0.13 | N8: 1.4 | O8: -0.1 | P8: -7.14
A9: Батон нарезной | B9: 30.00 | C9: 30.00 | D9: 30.00 | E9: 30.00 | F9: 30.00 | G9: 30.00 | H9: 30.00 | I9: 30.00 | J9: 30.00 | K9: 30.00 | L9: 300.00 | M9: 30.00 | N9: 0
A10: Хлеб пшеничный 1с | B10: 23.00 | C10: 45.80 | D10: 28.00 | E10: 23.00 | F10: 34.00 | G10: 23.00 | H10: 23.00 | I10: 31.00 | J10: 23.00 | K10: 23.00 | L10: 276.80 | M10: 27.68
A11: Хлеб сельский | B11: 37.50 | C11: 37.50 | D11: 37.50 | E11: 37.50 | F11: 37.50 | G11: 37.50 | H11: 37.50 | I11: 37.50 | J11: 37.50 | K11: 37.50 | L11: 375.00 | M11: 37.50 | N11: 375 | O11: 0.0 | P11: 0.00
A12: Мука пшеничная | B12: 31.60 | C12: 0.00 | D12: 39.25 | E12: 32.40 | F12: 8.80 | G12: 31.10 | H12: 2.00 | I12: 24.30 | J12: 29.40 | K12: 21.50 | L12: 220.35 | M12: 22.04 | N12: 218.0 | O12: 2.4 | P12: 1.08
A13: Кисель-концентрат | B13: 0.00 | C13: 18.00 | D13: 0.00 | E13: 0.00 | F13: 0.00 | G13: 0.00 | H13: 18.00 | I13: 0.00 | J13: 0.00 | K13: 18.00 | L13: 54.00 | M13: 5.40
A14: Макаронные изделия | B14: 0.00 | C14: 34.00 | D14: 8.00 | E14: 0.00 | F14: 0.00 | G14: 14.00 | H14: 0.00 | I14: 34.00 | J14: 0.00 | K14: 0.00 | L14: 90.00 | M14: 9.00 | N14: 90 | O14: 0.0 | P14: 0.00
A15: Крупа рисовая | B15: 22.00 | C15: 15.00 | D15: 0.00 | E15: 0.00 | F15: 7.50 | G15: 0.00 | H15: 25.00 | I15: 0.00 | J15: 5.00 | K15: 57.00 | L15: 131.50 | M15: 13.15
A16: Крупа кукурузная | B16: 0.00 | C16: 0.00 | D16: 0.00 | E16: 0.00 | F16: 0.00 | G16: 0.00 | H16: 0.00 | I16: 0.00 | J16: 0.00 | K16: 0.00 | L16: 0.00 | M16: 0.00
A17: Крупа манная | B17: 0.00 | C17: 8.00 | D17: 0.00 | E17: 0.00 | F17: 0.00 | G17: 2.00 | H17: 7.80 | I17: 25.00 | J17: 7.50 | K17: 0.00 | L17: 50.30 | M17: 5.03
A18: Горох | B18: 0.00 | C18: 20.00 | D18: 0.00 | E18: 0.00 | F18: 0.00 | G18: 0.00 | H18: 0.00 | I18: 0.00 | J18: 0.00 | K18: 0.00 | L18: 20.00 | M18: 2.00
A19: Крупа пшенная | B19: 0.00 | C19: 11.00 | D19: 0.00 | E19: 11.00 | F19: 0.00 | G19: 0.00 | H19: 0.00 | I19: 8.00 | J19: 30.00 | K19: 0.00 | L19: 60.00 | M19: 6.00
A20: Крупа ячневая | B20: 0.00 | C20: 0.00 | D20: 0.00 | E20: 0.00 | F20: 0.00 | G20: 0.00 | H20: 0.00 | I20: 0.00 | J20: 0.00 | K20: 0.00 | L20: 0.00 | M20: 0.00
A21: Полба | B21: 0.00 | C21: 0.00 | D21: 0.00 | E21: 0.00 | F21: 25.00 | G21: 0.00 | H21: 0.00 | I21: 0.00 | J21: 0.00 | K21: 0.00 | L21: 25.00 | M21: 2.50
A22: Крупа перловая | B22: 0.00 | C22: 0.00 | D22: 0.00 | E22: 0.00 | F22: 0.00 | G22: 8.00 | H22: 0.00 | I22: 0.00 | J22: 0.00 | K22: 0.00 | L22: 8.00 | M22: 0.80
A23: Крупа геркулесовая | B23: 0.00 | C23: 0.00 | D23: 0.00 | E23: 0.00 | F23: 0.00 | G23: 0.00 | H23: 0.00 | I23: 0.00 | J23: 0.00 | K23: 25.00 | L23: 25.00 | M23: 2.50
A24: Крупа пшеничная | B24: 0.00 | C24: 0.00 | D24: 25.00 | E24: 0.00 | F24: 0.00 | G24: 0.00 | H24: 0.00 | I24: 0.00 | J24: 0.00 | K24: 0.00 | L24: 25.00 | M24: 2.50
A25: Крупа гречневая | B25: 25.00 | C25: 0.00 | D25: 0.00 | E25: 0.00 | F25: 12.00 | G25: 0.00 | H25: 0.00 | I25: 0.00 | J25: 0.00 | K25: 0.00 | L25: 37.00 | M25: 3.70
A26: Картофель | B26: 130.50 | C26: 40.00 | D26: 203.00 | E26: 158.00 | F26: 161.25 | G26: 203.00 | H26: 69.00 | I26: 38.80 | J26: 143.00 | K26: 63.30 | L26: 1209.85 | M26: 120.99 | N26: 1190 | O26: 19.8 | P26: 1.67
A27: Морковь | B27: 52.05 | C27: 58.00 | D27: 35.00 | E27: 29.30 | F27: 54.70 | G27: 15.00 | H27: 75.00 | I27: 8.00 | J27: 8.00 | K27: 27.00 | L27: 362.05 | M27: 36.21
A28: Лук репчатый | B28: 32.15 | C28: 12.30 | D28: 28.38 | E28: 25.00 | F28: 59.55 | G28: 36.15 | H28: 28.10 | I28: 20.90 | J28: 20.73 | K28: 18.00 | L28: 281.26 | M28: 28.13
A29: Свекла | B29: 51.00 | C29: 57.00 | D29: 0.00 | E29: 0.00 | F29: 36.60 | G29: 0.00 | H29: 32.00 | I29: 0.00 | J29: 33.30 | K29: 0.00 | L29: 209.90 | M29: 20.99
A30: Капуста свежая | B30: 0.00 | C30: 0.00 | D30: 92.75 | E30: 40.00 | F30: 187.00 | G30: 110.00 | H30: 55.00 | I30: 24.00 | J30: 16.00 | K30: 48.60 | L30: 573.35 | M30: 57.34
A31: Икра кабачковая | B31: 0.00 | C31: 0.00 | D31: 0.00 | E31: 40.00 | F31: 0.00 | G31: 40.00 | H31: 0.00 | I31: 0.00 | J31: 0.00 | K31: 0.00 | L31: 80.00 | M31: 8.00
A32: Огурцы соленые | B32: 12.00 | C32: 0.00 | D32: 0.00 | E32: 0.00 | F32: 0.00 | G32: 12.00 | H32: 0.00 | I32: 40.00 | J32: 0.00 | K32: 0.00 | L32: 64.00 | M32: 6.40
A33: Помидоры свежие | B33: 0.00 | C33: 0.00 | D33: 0.00 | E33: 0.00 | F33: 0.00 | G33: 0.00 | H33: 0.00 | I33: 0.00 | J33: 0.00 | K33: 0.00 | L33: 0.00 | M33: 0.00
A34: Огурцы свежие | B34: 0.00 | C34: 0.00 | D34: 0.00 | E34: 0.00 | F34: 0.00 | G34: 0.00 | H34: 0.00 | I34: 0.00 | J34: 0.00 | K34: 0.00 | L34: 0.00 | M34: 0.00
A35: перец | B35: 0.00 | C35: 0.00 | D35: 0.00 | E35: 0.00 | F35: 0.00 | G35: 0.00 | H35: 0.00 | I35: 0.00 | J35: 0.00 | K35: 0.00 | L35: 0.00 | M35: 0.00
A36: Томат-паста | B36: 4.00 | C36: 0.00 | D36: 1.00 | E36: 0.00 | F36: 0.60 | G36: 0.00 | H36: 1.00 | I36: 0.00 | J36: 0.00 | K36: 0.00 | L36: 6.60 | M36: 0.66
A37: Масло сливочное | B37: 15.00 | C37: 17.00 | D37: 15.90 | E37: 22.00 | F37: 18.70 | G37: 11.90 | H37: 18.00 | I37: 21.00 | J37: 22.34 | K37: 22.50 | L37: 184.34 | M37: 18.43 | N37: 178 | O37: 6.3 | P37: 3.56
A38: Масло растительное | B38: 15.90 | C38: 8.60 | D38: 7.06 | E38: 12.60 | F38: 7.85 | G38: 6.60 | H38: 8.50 | I38: 6.90 | J38: 7.50 | K38: 13.00 | L38: 94.51 | M38: 9.45 | N38: 94 | O38: 0.5 | P38: 0.54
A39: Фрукты свежие | B39: 0.00 | C39: 100.00 | D39: 0.00 | E39: 100.00 | F39: 0.00 | G39: 100.00 | H39: 0.00 | I39: 100.00 | J39: 0.00 | K39: 100.00 | L39: 500.00 | M39: 50.00
A40: Яблоки | B40: 25.80 | C40: 0.00 | D40: 17.00 | E40: 17.20 | F40: 30.00 | G40: 0.00 | H40: 25.80 | I40: 30.00 | J40: 27.86 | K40: 0.00 | L40: 173.66 | M40: 17.37
A41: Ягоды | B41: 0.00 | C41: 0.00 | D41: 0.00 | E41: 0.00 | F41: 0.00 | G41: 0.00 | H41: 0.00 | I41: 0.00 | J41: 0.00 | K41: 0.00 | L41: 0.00 | M41: 0.00
A42: Лимон | B42: 0.00 | C42: 3.00 | D42: 0.00 | E42: 0.00 | F42: 3.00 | G42: 0.00 | H42: 0.00 | I42: 3.00 | J42: 0.00 | K42: 3.00 | L42: 12.00 | M42: 1.20
A43: Повидло фруктовое | B43: 25.00 | C43: 0.00 | D43: 0.00 | E43: 0.00 | F43: 0.00 | G43: 23.50 | H43: 20.00 | I43: 0.00 | J43: 0.00 | K43: 0.00 | L43: 68.50 | M43: 6.85
A44: Сок | B44: 200.00 | C44: 0.00 | D44: 200.00 | E44: 0.00 | F44: 200.00 | G44: 0.00 | H44: 200.00 | I44: 0.00 | J44: 200.00 | K44: 0.00 | L44: 1000.00 | M44: 100.00 | N44: 1000 | O44: 0.0 | P44: 0.00
A45: Курага | B45: 0.00 | C45: 0.00 | D45: 15.00 | E45: 0.00 | F45: 0.00 | G45: 15.00 | H45: 0.00 | I45: 0.00 | J45: 0.00 | K45: 0.00 | L45: 30.00 | M45: 3.00
A46: Сухофрукты | B46: 15.00 | C46: 0.00 | D46: 0.00 | E46: 15.00 | F46: 0.00 | G46: 0.00 | H46: 0.00 | I46: 0.00 | J46: 15.00 | K46: 0.00 | L46: 45.00 | M46: 4.50
A47: Урюк | B47: 0.00 | C47: 0.00 | D47: 0.00 | E47: 0.00 | F47: 0.00 | G47: 0.00 | H47: 0.00 | I47: 0.00 | J47: 0.00 | K47: 0.00 | L47: 0.00 | M47: 0.00
A48: Изюм | B48: 0.00 | C48: 0.00 | D48: 0.00 | E48: 0.00 | F48: 0.00 | G48: 0.00 | H48: 0.00 | I48: 0.00 | J48: 10.00 | K48: 0.00 | L48: 10.00 | M48: 1.00
A49: Шиповник | B49: 0.00 | C49: 0.00 | D49: 12.00 | E49: 0.00 | F49: 0.00 | G49: 12.00 | H49: 0.00 | I49: 0.00 | J49: 0.00 | K49: 0.00 | L49: 24.00 | M49: 2.40
A50: Молоко | B50: 190.00 | C50: 227.00 | D50: 208.00 | E50: 220.00 | F50: 210.00 | G50: 226.00 | H50: 190.00 | I50: 326.00 | J50: 218.00 | K50: 296.00 | L50: 2311.00 | M50: 231.10
A51: Кефир | B51: 130.00 | C51: 0.00 | D51: 0.00 | E51: 130.00 | F51: 0.00 | G51: 0.00 | H51: 130.00 | I51: 0.00 | J51: 0.00 | K51: 130.00 | L51: 520.00 | M51: 52.00
A52: Ряженка | B52: 0.00 | C52: 130.00 | D52: 0.00 | E52: 0.00 | F52: 130.00 | G52: 0.00 | H52: 0.00 | I52: 130.00 | J52: 0.00 | K52: 0.00 | L52: 390.00 | M52: 39.00
A53: Катык | B53: 0.00 | C53: 0.00 | D53: 130.00 | E53: 0.00 | F53: 0.00 | G53: 130.00 | H53: 0.00 | I53: 0.00 | J53: 130.00 | K53: 0.00 | L53: 390.00 | M53: 39.00
A54: Молоко сгущенное | B54: 0.00 | C54: 20.00 | D54: 0.00 | E54: 0.00 | F54: 0.00 | G54: 0.00 | H54: 0.00 | I54: 0.00 | J54: 20.00 | K54: 0.00 | L54: 40.00 | M54: 4.00
A55: Сметана | B55: 8.00 | C55: 10.00 | D55: 10.50 | E55: 6.00 | F55: 7.00 | G55: 10.00 | H55: 11.20 | I55: 5.00 | J55: 11.00 | K55: 0.00 | L55: 78.70 | M55: 7.87 | N55: 83 | O55: -3.8 | P55: -4.61
A56: Творог | B56: 0.00 | C56: 75.00 | D56: 0.00 | E56: 67.00 | F56: 0.00 | G56: 0.00 | H56: 119.60 | I56: 0.00 | J56: 75.00 | K56: 0.00 | L56: 336.60 | M56: 33.66 | N56: 322 | O56: 14.6 | P56: 4.53
A57: Говядина | B57: 47.25 | C57: 0.00 | D57: 0.00 | E57: 52.00 | F57: 0.00 | G57: 0.00 | H57: 47.30 | I57: 0.00 | J57: 0.00 | K57: 52.00 | L57: 198.55 | M57: 19.86
A58: Фарш из говядины | B58: 0.00 | C58: 44.50 | D58: 17.10 | E58: 0.00 | F58: 17.10 | G58: 58.00 | H58: 0.00 | I58: 35.70 | J58: 55.30 | K58: 0.00 | L58: 227.70 | M58: 22.77
A59: Цыплята | B59: 0.00 | C59: 22.00 | D59: 47.25 | E59: 0.00 | F59: 44.23 | G59: 22.00 | H59: 0.00 | I59: 48.60 | J59: 0.00 | K59: 22.00 | L59: 206.08 | M59: 20.61
A60: Фарш индейки | B60: 0.00 | C60: 0.00 | D60: 0.00 | E60: 0.00 | F60: 0.00 | G60: 0.00 | H60: 0.00 | I60: 0.00 | J60: 0.00 | K60: 0.00 | L60: 0.00 | M60: 0.00
A61: Фарш птицы | B61: 0.00 | C61: 0.00 | D61: 0.00 | E61: 0.00 | F61: 0.00 | G61: 0.00 | H61: 0.00 | I61: 0.00 | J61: 0.00 | K61: 0.00 | L61: 0.00 | M61: 0.00
A62: Сыр | B62: 11.20 | C62: 7.00 | D62: 0.00 | E62: 7.00 | F62: 0.00 | G62: 7.00 | H62: 0.00 | I62: 7.00 | J62: 0.00 | K62: 7.00 | L62: 46.20 | M62: 4.62 | N62: 45 | O62: 1.2 | P62: 2.67
A63: Рыба | B63: 69.00 | C63: 0.00 | D63: 40.00 | E63: 0.00 | F63: 37.50 | G63: 60.00 | H63: 0.00 | I63: 0.00 | J63: 0.00 | K63: 72.00 | L63: 278.50 | M63: 27.85 | N63: 277.5 | O63: 1.0 | P63: 0.36
A64: Кофейный напиток | B64: 2.50 | C64: 0.00 | D64: 0.00 | E64: 2.50 | F64: 0.00 | G64: 0.00 | H64: 2.50 | I64: 0.00 | J64: 0.00 | K64: 2.50 | L64: 10.00 | M64: 1.00 | N64: 10 | O64: 0.0 | P64: 0.00
A65: Какао-порошок | B65: 0.00 | C65: 2.00 | D65: 0.00 | E65: 0.00 | F65: 2.00 | G65: 0.00 | H65: 0.00 | I65: 2.00 | J65: 0.00 | K65: 0.00 | L65: 6.00 | M65: 0.60 | N65: 6 | O65: 0.0 | P65: 0.00
A66: Кондитерские изделия | B66: 0.00 | C66: 40.00 | D66: 0.00 | E66: 20.00 | F66: 30.00 | G66: 0.00 | H66: 40.00 | I66: 0.00 | J66: 0.00 | K66: 20.00 | L66: 150.00 | M66: 15.00
A67: конфеты | B67: 0.00 | C67: 0.00 | D67: 0.00 | E67: 0.00 | F67: 0.00 | G67: 0.00 | H67: 0.00 | I67: 0.00 | J67: 0.00 | K67: 0.00 | L67: 0.00 | M67: 0.00
A68: Соль | B68: 5.80 | C68: 3.60 | D68: 6.30 | E68: 4.90 | F68: 5.50 | G68: 5.20 | H68: 5.40 | I68: 5.40 | J68: 4.70 | K68: 6.50 | L68: 53.30 | M68: 5.33 | N68: 51.0 | O68: 2.3 | P68: 4.51
A69: Крахмал | B69: 0.00 | C69: 7.60 | D69: 0.00 | E69: 0.00 | F69: 0.00 | G69: 0.00 | H69: 7.60 | I69: 0.00 | J69: 0.00 | K69: 7.60 | L69: 22.80 | M69: 2.28 | N69: 23.0 | O69: -0.2 | P69: -0.87
A70: Сухари панировочные | B70: 0.00 | C70: 6.00 | D70: 0.00 | E70: 0.00 | F70: 6.00 | G70: 8.00 | H70: 5.20 | I70: 5.00 | J70: 2.50 | K70: 3.00 | L70: 35.70 | M70: 3.57
A71: Напиток витаминный | B71: 0.00 | C71: 0.00 | D71: 0.00 | E71: 0.00 | F71: 0.00 | G71: 0.00 | H71: 0.00 | I71: 0.00 | J71: 0.00 | K71: 0.00 | L71: 0.00 | M71: 0.00 | N71: 0
A72: Крупы, бобовые | B72: 47.00 | C72: 54.00 | D72: 25.00 | E72: 11.00 | F72: 44.50 | G72: 10.00 | H72: 32.80 | I72: 33.00 | J72: 42.50 | K72: 82.00 | L72: 381.80 | M72: 38.18 | N72: 366 | O72: 15.8 | P72: 4.32
A73: Овощи разные | B73: 151.20 | C73: 127.30 | D73: 157.13 | E73: 134.30 | F73: 338.45 | G73: 213.15 | H73: 191.10 | I73: 92.90 | J73: 78.03 | K73: 93.60 | L73: 1577.16 | M73: 157.72 | N73: 1820 | O73: -242.8 | P73: 3.34
A74: Фрукты | B74: 50.80 | C74: 103.00 | D74: 17.00 | E74: 117.20 | F74: 33.00 | G74: 123.50 | H74: 45.80 | I74: 133.00 | J74: 27.86 | K74: 103.00 | L74: 754.16 | M74: 75.42 | N74: 800 | O74: -45.8 | P74: -5.73 | Q74: замена с/ф
A75: Фрукты сухие | B75: 15.00 | C75: 0.00 | D75: 27.00 | E75: 15.00 | F75: 0.00 | G75: 27.00 | H75: 0.00 | I75: 0.00 | J75: 25.00 | K75: 0.00 | L75: 109.00 | M75: 10.90 | N75: 88.0 | O75: 21.0 | P75: 23.86
A76: Молочные прод. | B76: 320.00 | C76: 377.00 | D76: 338.00 | E76: 350.00 | F76: 340.00 | G76: 356.00 | H76: 320.00 | I76: 456.00 | J76: 368.00 | K76: 426.00 | L76: 3651.00 | M76: 365.10 | N76: 3600.0 | O76: 51.0 | P76: 1.42
A77: Птица | B77: 0.00 | C77: 22.00 | D77: 47.25 | E77: 0.00 | F77: 44.23 | G77: 22.00 | H77: 0.00 | I77: 48.60 | J77: 0.00 | K77: 22.00 | L77: 206.08 | M77: 20.61 | N77: 204.0 | O77: 2.1 | P77: 1.02
A78: Говядина | B78: 47.25 | C78: 44.50 | D78: 17.10 | E78: 52.00 | F78: 17.10 | G78: 58.00 | H78: 47.30 | I78: 35.70 | J78: 55.30 | K78: 52.00 | L78: 426.25 | M78: 42.63 | N78: 413.0 | O78: 13.3 | P78: 3.21
A79: Хлеб пшеничный | B79: 53.00 | C79: 75.80 | D79: 58.00 | E79: 53.00 | F79: 64.00 | G79: 53.00 | H79: 53.00 | I79: 61.00 | J79: 53.00 | K79: 53.00 | L79: 576.80 | M79: 57.68 | N79: 600.0 | O79: -23.2 | P79: -3.87
A80: Кондитерские изделия | B80: 0.00 | C80: 40.00 | D80: 0.00 | E80: 20.00 | F80: 30.00 | G80: 0.00 | H80: 40.00 | I80: 0.00 | J80: 0.00 | K80: 20.00 | L80: 150.00 | M80: 15.00 | N80: 150.0 | O80: 0.0 | P80: 0.00
A82: Примечание: расход хлеба пшеничного с учетом расхода сухарей панировочных
B83: Расход продуктов ДОУ
D84: от 3 до 7 лет | K84: брутто
A86: Наименов. прод. | B86: 1 | C86: 2 | D86: 3 | E86: 4 | F86: 5 | G86: 6 | H86: 7 | I86: 8 | J86: 9 | K86: 10 | L86: Кол-во | M86: Среднее
A88: Сахар | B88: 31.30 | C88: 37.50 | D88: 32.63 | E88: 36.00 | F88: 34.50 | G88: 28.62 | H88: 40.80 | I88: 31.60 | J88: 40.66 | K88: 30.50 | L88: 344.11 | M88: 34.41
A89: Заварка | B89: 0.35 | C89: 0.35 | D89: 0.45 | E89: 0.35 | F89: 0.35 | G89: 0.45 | H89: 0.35 | I89: 0.35 | J89: 0.80 | K89: 0.35 | L89: 4.15 | M89: 0.42
A90: Яйцо | B90: 4.20 | C90: 5.00 | D90: 10.80 | E90: 8.40 | F90: 5.50 | G90: 14.40 | H90: 5.20 | I90: 111.50 | J90: 9.23 | K90: 4.00 | L90: 178.23 | M90: 17.82
A91: Дрожжи сухие | B91: 0.20 | C91: 0.00 | D91: 0.30 | E91: 0.00 | F91: 0.00 | G91: 0.20 | H91: 0.00 | I91: 0.30 | J91: 0.30 | K91: 0.00 | L91: 1.30 | M91: 0.13
A92: Батон нарезной | B92: 30.00 | C92: 30.00 | D92: 30.00 | E92: 30.00 | F92: 30.00 | G92: 30.00 | H92: 30.00 | I92: 30.00 | J92: 30.00 | K92: 30.00 | L92: 300.00 | M92: 30.00
A93: Хлеб пшеничный 1с | B93: 23.00 | C93: 48.20 | D93: 28.00 | E93: 23.00 | F93: 34.00 | G93: 23.00 | H93: 23.00 | I93: 31.00 | J93: 23.00 | K93: 23.00 | L93: 279.20 | M93: 27.92
A94: Хлеб сельский | B94: 37.50 | C94: 37.50 | D94: 37.50 | E94: 37.50 | F94: 37.50 | G94: 37.50 | H94: 37.50 | I94: 37.50 | J94: 37.50 | K94: 37.50 | L94: 375.00 | M94: 37.50
A95: Мука пшеничная | B95: 31.60 | C95: 0.00 | D95: 39.26 | E95: 32.40 | F95: 8.80 | G95: 31.10 | H95: 2.00 | I95: 24.30 | J95: 29.40 | K95: 21.50 | L95: 220.36 | M95: 22.04
A96: Кисель-концентрат | B96: 0.00 | C96: 18.00 | D96: 0.00 | E96: 0.00 | F96: 0.00 | G96: 0.00 | H96: 18.00 | I96: 0.00 | J96: 0.00 | K96: 18.00 | L96: 54.00 | M96: 5.40
A97: Макаронные изделия | B97: 0.00 | C97: 34.00 | D97: 8.00 | E97: 0.00 | F97: 0.00 | G97: 14.00 | H97: 0.00 | I97: 34.00 | J97: 0.00 | K97: 0.00 | L97: 90.00 | M97: 9.00
A98: Крупа рисовая | B98: 22.00 | C98: 15.00 | D98: 0.00 | E98: 0.00 | F98: 7.50 | G98: 0.00 | H98: 25.00 | I98: 0.00 | J98: 5.00 | K98: 57.00 | L98: 131.50 | M98: 13.15
A99: Крупа кукурузная | B99: 0.00 | C99: 0.00 | D99: 0.00 | E99: 0.00 | F99: 0.00 | G99: 0.00 | H99: 0.00 | I99: 0.00 | J99: 0.00 | K99: 0.00 | L99: 0.00 | M99: 0.00
A100: Крупа манная | B100: 0.00 | C100: 8.00 | D100: 0.00 | E100: 0.00 | F100: 0.00 | G100: 2.00 | H100: 7.80 | I100: 25.00 | J100: 7.50 | K100: 0.00 | L100: 50.30 | M100: 5.03
A101: Горох | B101: 0.00 | C101: 20.25 | D101: 0.00 | E101: 0.00 | F101: 0.00 | G101: 0.00 | H101: 0.00 | I101: 0.00 | J101: 0.00 | K101: 0.00 | L101: 20.25 | M101: 2.03
A102: Крупа пшенная | B102: 0.00 | C102: 11.00 | D102: 0.00 | E102: 11.00 | F102: 0.00 | G102: 0.00 | H102: 0.00 | I102: 8.00 | J102: 30.00 | K102: 0.00 | L102: 60.00 | M102: 6.00
A103: Крупа ячневая | B103: 0.00 | C103: 0.00 | D103: 0.00 | E103: 0.00 | F103: 0.00 | G103: 0.00 | H103: 0.00 | I103: 0.00 | J103: 0.00 | K103: 0.00 | L103: 0.00 | M103: 0.00
A104: Полба | B104: 0.00 | C104: 0.00 | D104: 0.00 | E104: 0.00 | F104: 25.00 | G104: 0.00 | H104: 0.00 | I104: 0.00 | J104: 0.00 | K104: 0.00 | L104: 25.00 | M104: 2.50
A105: Крупа перловая | B105: 0.00 | C105: 0.00 | D105: 0.00 | E105: 0.00 | F105: 0.00 | G105: 8.00 | H105: 0.00 | I105: 0.00 | J105: 0.00 | K105: 0.00 | L105: 8.00 | M105: 0.80
A106: Крупа геркулесовая | B106: 0.00 | C106: 0.00 | D106: 0.00 | E106: 0.00 | F106: 0.00 | G106: 0.00 | H106: 0.00 | I106: 0.00 | J106: 0.00 | K106: 25.00 | L106: 25.00 | M106: 2.50
A107: Крупа пшеничная | B107: 0.00 | C107: 0.00 | D107: 25.00 | E107: 0.00 | F107: 0.00 | G107: 0.00 | H107: 0.00 | I107: 0.00 | J107: 0.00 | K107: 0.00 | L107: 25.00 | M107: 2.50
A108: Крупа гречневая | B108: 25.00 | C108: 0.00 | D108: 0.00 | E108: 0.00 | F108: 12.00 | G108: 0.00 | H108: 0.00 | I108: 0.00 | J108: 0.00 | K108: 0.00 | L108: 37.00 | M108: 3.70
A109: Картофель | B109: 200.97 | C109: 61.60 | D109: 312.62 | E109: 243.32 | F109: 248.33 | G109: 312.62 | H109: 106.26 | I109: 59.76 | J109: 220.22 | K109: 97.49 | L109: 1863.19 | M109: 186.32
A110: Морковь | B110: 69.22 | C110: 77.14 | D110: 46.55 | E110: 38.94 | F110: 72.75 | G110: 19.95 | H110: 97.19 | I110: 10.64 | J110: 10.64 | K110: 35.91 | L110: 478.93 | M110: 47.89
A111: Лук репчатый | B111: 38.26 | C111: 14.64 | D111: 33.79 | E111: 29.75 | F111: 70.88 | G111: 43.03 | H111: 33.45 | I111: 24.85 | J111: 24.68 | K111: 21.42 | L111: 334.75 | M111: 33.48
A112: Свекла | B112: 69.36 | C112: 77.52 | D112: 0.00 | E112: 0.00 | F112: 49.80 | G112: 0.00 | H112: 43.52 | I112: 0.00 | J112: 45.28 | K112: 0.00 | L112: 285.48 | M112: 28.55
A113: Капуста свежая | B113: 0.00 | C113: 0.00 | D113: 116.01 | E113: 50.00 | F113: 233.75 | G113: 137.50 | H113: 68.75 | I113: 30.00 | J113: 20.00 | K113: 60.75 | L113: 716.76 | M113: 71.68
A114: Икра кабачковая | B114: 0.00 | C114: 0.00 | D114: 0.00 | E114: 42.00 | F114: 0.00 | G114: 42.00 | H114: 0.00 | I114: 0.00 | J114: 0.00 | K114: 0.00 | L114: 84.00 | M114: 8.40
A115: Огурцы соленые | B115: 22.00 | C115: 0.00 | D115: 0.00 | E115: 0.00 | F115: 0.00 | G115: 21.84 | H115: 0.00 | I115: 72.80 | J115: 0.00 | K115: 0.00 | L115: 116.64 | M115: 11.66
A116: Помидоры свежие | B116: 0.00 | C116: 0.00 | D116: 0.00 | E116: 0.00 | F116: 0.00 | G116: 0.00 | H116: 0.00 | I116: 0.00 | J116: 0.00 | K116: 0.00 | L116: 0.00 | M116: 0.00
A117: Огурцы свежие | B117: 0.00 | C117: 0.00 | D117: 0.00 | E117: 0.00 | F117: 0.00 | G117: 0.00 | H117: 0.00 | I117: 0.00 | J117: 0.00 | K117: 0.00 | L117: 0.00 | M117: 0.00
A118: перец | B118: 0.00 | C118: 0.00 | D118: 0.00 | E118: 0.00 | F118: 0.00 | G118: 0.00 | H118: 0.00 | I118: 0.00 | J118: 0.00 | K118: 0.00 | L118: 0.00 | M118: 0.00
A119: Томат-паста | B119: 4.00 | C119: 0.00 | D119: 1.00 | E119: 0.00 | F119: 0.60 | G119: 0.00 | H119: 1.00 | I119: 0.00 | J119: 0.00 | K119: 0.00 | L119: 6.60 | M119: 0.66
A120: Масло сливочное | B120: 15.00 | C120: 17.00 | D120: 15.90 | E120: 22.00 | F120: 18.70 | G120: 11.90 | H120: 18.00 | I120: 21.00 | J120: 22.34 | K120: 22.50 | L120: 184.34 | M120: 18.43
A121: Масло растительное | B121: 15.90 | C121: 8.60 | D121: 7.06 | E121: 12.60 | F121: 7.85 | G121: 6.60 | H121: 8.50 | I121: 6.90 | J121: 7.50 | K121: 13.00 | L121: 94.51 | M121: 9.45
A122: Фрукты свежие | B122: 0.00 | C122: 114.00 | D122: 0.00 | E122: 114.00 | F122: 0.00 | G122: 114.00 | H122: 0.00 | I122: 114.00 | J122: 0.00 | K122: 114.00 | L122: 570.00 | M122: 57.00
A123: Яблоки | B123: 29.41 | C123: 0.00 | D123: 23.00 | E123: 19.56 | F123: 34.00 | G123: 0.00 | H123: 29.41 | I123: 34.00 | J123: 31.80 | K123: 0.00 | L123: 201.18 | M123: 20.12
A124: Ягоды | B124: 0.00 | C124: 0.00 | D124: 0.00 | E124: 0.00 | F124: 0.00 | G124: 0.00 | H124: 0.00 | I124: 0.00 | J124: 0.00 | K124: 0.00 | L124: 0.00 | M124: 0.00
A125: Лимон | B125: 0.00 | C125: 3.40 | D125: 0.00 | E125: 0.00 | F125: 3.40 | G125: 0.00 | H125: 0.00 | I125: 3.40 | J125: 0.00 | K125: 3.40 | L125: 13.60 | M125: 1.36
A126: Повидло фруктовое | B126: 25.00 | C126: 0.00 | D126: 0.00 | E126: 0.00 | F126: 0.00 | G126: 23.50 | H126: 20.00 | I126: 0.00 | J126: 0.00 | K126: 0.00 | L126: 68.50 | M126: 6.85
A127: Сок | B127: 200.00 | C127: 0.00 | D127: 200.00 | E127: 0.00 | F127: 200.00 | G127: 0.00 | H127: 200.00 | I127: 0.00 | J127: 200.00 | K127: 0.00 | L127: 1000.00 | M127: 100.00
A128: Курага | B128: 0.00 | C128: 0.00 | D128: 15.30 | E128: 0.00 | F128: 0.00 | G128: 15.30 | H128: 0.00 | I128: 0.00 | J128: 0.00 | K128: 0.00 | L128: 30.60 | M128: 3.06
A129: Сухофрукты | B129: 15.30 | C129: 0.00 | D129: 0.00 | E129: 15.30 | F129: 0.00 | G129: 0.00 | H129: 0.00 | I129: 0.00 | J129: 15.30 | K129: 0.00 | L129: 45.90 | M129: 4.59
A130: Урюк | B130: 0.00 | C130: 0.00 | D130: 0.00 | E130: 0.00 | F130: 0.00 | G130: 0.00 | H130: 0.00 | I130: 0.00 | J130: 0.00 | K130: 0.00 | L130: 0.00 | M130: 0.00
A131: Изюм | B131: 0.00 | C131: 0.00 | D131: 0.00 | E131: 0.00 | F131: 0.00 | G131: 0.00 | H131: 0.00 | I131: 0.00 | J131: 10.20 | K131: 0.00 | L131: 10.20 | M131: 1.02
A132: Шиповник | B132: 0.00 | C132: 0.00 | D132: 12.00 | E132: 0.00 | F132: 0.00 | G132: 12.00 | H132: 0.00 | I132: 0.00 | J132: 0.00 | K132: 0.00 | L132: 24.00 | M132: 2.40
A133: Молоко | B133: 190.00 | C133: 227.00 | D133: 210.96 | E133: 220.00 | F133: 210.00 | G133: 228.00 | H133: 190.00 | I133: 326.00 | J133: 220.96 | K133: 296.00 | L133: 2318.92 | M133: 231.89
A134: Кефир | B134: 134.00 | C134: 0.00 | D134: 0.00 | E134: 134.00 | F134: 0.00 | G134: 0.00 | H134: 134.00 | I134: 0.00 | J134: 0.00 | K134: 134.00 | L134: 536.00 | M134: 53.60
A135: Ряженка | B135: 0.00 | C135: 134.00 | D135: 0.00 | E135: 0.00 | F135: 134.00 | G135: 0.00 | H135: 0.00 | I135: 134.00 | J135: 0.00 | K135: 0.00 | L135: 402.00 | M135: 40.20
A136: Катык | B136: 0.00 | C136: 0.00 | D136: 134.00 | E136: 0.00 | F136: 0.00 | G136: 134.00 | H136: 0.00 | I136: 0.00 | J136: 134.00 | K136: 0.00 | L136: 402.00 | M136: 40.20
A137: Молоко сгущенное | B137: 0.00 | C137: 20.00 | D137: 0.00 | E137: 0.00 | F137: 0.00 | G137: 0.00 | H137: 0.00 | I137: 0.00 | J137: 20.00 | K137: 0.00 | L137: 40.00 | M137: 4.00
A138: Сметана | B138: 8.00 | C138: 10.00 | D138: 10.50 | E138: 6.00 | F138: 7.00 | G138: 10.00 | H138: 11.20 | I138: 5.00 | J138: 11.00 | K138: 0.00 | L138: 78.70 | M138: 7.87
A139: Творог | B139: 0.00 | C139: 76.07 | D139: 0.00 | E139: 68.00 | F139: 0.00 | G139: 0.00 | H139: 121.99 | I139: 0.00 | J139: 76.07 | K139: 0.00 | L139: 342.13 | M139: 34.21
A140: Говядина | B140: 47.25 | C140: 0.00 | D140: 0.00 | E140: 52.00 | F140: 0.00 | G140: 0.00 | H140: 47.30 | I140: 0.00 | J140: 0.00 | K140: 52.00 | L140: 198.55 | M140: 19.86
A141: Фарш из говядины | B141: 0.00 | C141: 44.50 | D141: 17.10 | E141: 0.00 | F141: 17.10 | G141: 58.00 | H141: 0.00 | I141: 35.70 | J141: 55.30 | K141: 0.00 | L141: 227.70 | M141: 22.77
A142: Цыплята | B142: 0.00 | C142: 33.85 | D142: 72.77 | E142: 0.00 | F142: 68.00 | G142: 33.85 | H142: 0.00 | I142: 74.77 | J142: 0.00 | K142: 33.85 | L142: 317.09 | M142: 31.71
A143: фарш индейки | B143: 0.00 | C143: 0.00 | D143: 0.00 | E143: 0.00 | F143: 0.00 | G143: 0.00 | H143: 0.00 | I143: 0.00 | J143: 0.00 | K143: 0.00 | L143: 0.00 | M143: 0.00
A144: фарш птицы | B144: 0.00 | C144: 0.00 | D144: 0.00 | E144: 0.00 | F144: 0.00 | G144: 0.00 | H144: 0.00 | I144: 0.00 | J144: 0.00 | K144: 0.00 | L144: 0.00 | M144: 0.00
A145: Сыр | B145: 11.50 | C145: 7.14 | D145: 0.00 | E145: 7.14 | F145: 0.00 | G145: 7.14 | H145: 0.00 | I145: 7.14 | J145: 0.00 | K145: 7.14 | L145: 47.20 | M145: 4.72
A146: Рыба | B146: 90.80 | C146: 0.00 | D146: 52.63 | E146: 0.00 | F146: 49.34 | G146: 78.95 | H146: 0.00 | I146: 0.00 | J146: 0.00 | K146: 94.74 | L146: 366.46 | M146: 36.65
A147: Кофейный напиток | B147: 2.50 | C147: 0.00 | D147: 0.00 | E147: 2.50 | F147: 0.00 | G147: 0.00 | H147: 2.50 | I147: 0.00 | J147: 0.00 | K147: 2.50 | L147: 10.00 | M147: 1.00
A148: Какао-порошок | B148: 0.00 | C148: 2.00 | D148: 0.00 | E148: 0.00 | F148: 2.00 | G148: 0.00 | H148: 0.00 | I148: 2.00 | J148: 0.00 | K148: 0.00 | L148: 6.00 | M148: 0.60
A149: Кондитерские изделия | B149: 0.00 | C149: 40.00 | D149: 0.00 | E149: 20.00 | F149: 30.00 | G149: 0.00 | H149: 40.00 | I149: 0.00 | J149: 0.00 | K149: 20.00 | L149: 150.00 | M149: 15.00
A150: кислота лимонная | B150: 0.00 | C150: 0.00 | D150: 0.00 | E150: 0.00 | F150: 0.00 | G150: 0.00 | H150: 0.00 | I150: 0.00 | J150: 0.00 | K150: 0.00 | L150: 0.00 | M150: 0.00
A151: Соль | B151: 5.80 | C151: 3.60 | D151: 6.30 | E151: 4.90 | F151: 5.50 | G151: 5.20 | H151: 5.40 | I151: 5.40 | J151: 4.70 | K151: 6.50 | L151: 53.30 | M151: 5.33
A152: Крахмал | B152: 0.00 | C152: 0.00 | D152: 0.00 | E152: 0.00 | F152: 0.00 | G152: 0.00 | H152: 0.00 | I152: 0.00 | J152: 0.00 | K152: 0.00 | L152: 0.00 | M152: 0.00
A153: Сухари панировочные | B153: 0.00 | C153: 6.00 | D153: 0.00 | E153: 0.00 | F153: 6.00 | G153: 8.00 | H153: 5.20 | I153: 5.00 | J153: 2.50 | K153: 3.00 | L153: 35.70 | M153: 3.57
A154: Крупы, бобовые | B154: 47.00 | C154: 54.25 | D154: 25.00 | E154: 11.00 | F154: 44.50 | G154: 10.00 | H154: 32.80 | I154: 33.00 | J154: 42.50 | K154: 82.00 | L154: 382.05 | M154: 38.21
A155: Овощи разные | B155: 202.84 | C155: 169.30 | D155: 197.35 | E155: 160.69 | F155: 427.78 | G155: 264.32 | H155: 243.91 | I155: 138.29 | J155: 100.60 | K155: 118.08 | L155: 2023.16 | M155: 202.32
A156: Фрукты | B156: 29.41 | C156: 117.40 | D156: 23.00 | E156: 133.56 | F156: 37.40 | G156: 114.00 | H156: 29.41 | I156: 151.40 | J156: 31.80 | K156: 117.40 | L156: 784.78 | M156: 78.48
A157: Фрукты сухие | B157: 15.30 | C157: 0.00 | D157: 15.30 | E157: 15.30 | F157: 0.00 | G157: 15.30 | H157: 0.00 | I157: 0.00 | J157: 25.50 | K157: 0.00 | L157: 86.70 | M157: 8.67
A158: Молочные прод. | B158: 324.00 | C158: 381.00 | D158: 344.96 | E158: 354.00 | F158: 344.00 | G158: 362.00 | H158: 324.00 | I158: 460.00 | J158: 374.96 | K158: 430.00 | L158: 3698.92 | M158: 369.89
A159: птица | B159: 0.00 | C159: 33.85 | D159: 72.77 | E159: 0.00 | F159: 68.00 | G159: 33.85 | H159: 0.00 | I159: 74.77 | J159: 0.00 | K159: 33.85 | L159: 317.09 | M159: 31.71
A160: Говядина | B160: 47.25 | C160: 44.50 | D160: 17.10 | E160: 52.00 | F160: 17.10 | G160: 58.00 | H160: 47.30 | I160: 35.70 | J160: 55.30 | K160: 52.00 | L160: 426.25 | M160: 42.63
A161: Хлеб пшеничный | B161: 53.00 | C161: 78.20 | D161: 58.00 | E161: 53.00 | F161: 64.00 | G161: 53.00 | H161: 53.00 | I161: 61.00 | J161: 53.00 | K161: 53.00 | L161: 579.20 | M161: 57.92
A162: Кондитерские изделия | B162: 0.00 | C162: 40.00 | D162: 0.00 | E162: 20.00 | F162: 30.00 | G162: 0.00 | H162: 40.00 | I162: 0.00 | J162: 0.00 | K162: 20.00 | L162: 150.00 | M162: 15.00
